Workbook

Sheet Rd. 1
D1: Siggi | F1: Sp. 1 | K1: Anja | M1: Sp. 2
D2: Punkte | E2: 501 | F2: Start | K2: Punkte | L2: 501 | M2: Start
D3: Geworfen | E3: =SUM(D34) -> 299 | F3: Punkte | K3: Geworfen | L3: =SUM(K34) -> 0 | M3: Punkte
A4: RD 1 | B4: =COUNT(D4)*1 -> 1 | C4: =COUNT(D4)*3 -> 3 | D4: 100 | E4: =SUM(E2-E3) -> 202 | H4: RD 1 | I4: =COUNT(K4)*1 -> 0 | J4: =COUNT(K4)*3 -> 0 | L4: =SUM(L2-L3) -> 501 | M4: Rest
A5: RD 2 | B5: 1 | C5: 3 | D5: 99 | H5: RD 2 | I5: 0 | J5: 0 | O5: Eintragen
A6: RD 3 | B6: 1 | C6: 3 | D6: 100 | E6: ø pro Spiel | F6: =SUM(E3)/B34 -> 99.66666667 | H6: RD 3 | I6: 0 | J6: 0 | L6: ø pro Spiel | M6: =SUM(L3)/I34 -> 
A7: RD 4 | B7: 0 | C7: 0 | E7: ø pro Pfeil | F7: =SUM(E3)/C34 -> 33.22222222 | H7: RD 4 | I7: 0 | J7: 0 | L7: ø pro Pfeil | M7: =SUM(L3)/J34 -> 
A8: RD 5 | B8: 0 | C8: 0 | E8: Average | H8: RD 5 | I8: 0 | J8: 0 | K8: =IF(COUNT(Runde1!H6:J6)=0,"",SUM(Runde1!H6:J6)) ->  | L8: Average
A9: RD 6 | B9: 0 | C9: 0 | D9: =IF(COUNT(Runde1!B7:D7)=0,"",SUM(Runde1!B7:D7)) ->  | E9: =SUM(F6) -> 99.66666667 | H9: RD 6 | I9: 0 | J9: 0 | K9: =IF(COUNT(Runde1!H7:J7)=0,"",SUM(Runde1!H7:J7)) ->  | L9: =SUM(M6) -> 
A10: RD 7 | B10: 0 | C10: 0 | D10: =IF(COUNT(Runde1!B8:D8)=0,"",SUM(Runde1!B8:D8)) ->  | H10: RD 7 | I10: 0 | J10: 0 | K10: =IF(COUNT(Runde1!H8:J8)=0,"",SUM(Runde1!H8:J8)) -> 
A11: RD 8 | B11: 0 | C11: 0 | E11: Nicht Gut | H11: RD 8 | I11: 0 | J11: 0 | L11: Nicht Gut
A12: RD 9 | B12: 0 | C12: 0 | H12: RD 9 | I12: 0 | J12: 0
A13: RD 10 | B13: 0 | C13: 0 | E13: Gut | H13: RD 10 | I13: 0 | J13: 0 | L13: Gut
A14: RD 11 | B14: 0 | C14: 0 | H14: RD 11 | I14: 0 | J14: 0
A15: RD 12 | B15: 0 | C15: 0 | D15: =IF(COUNT(Runde1!B9:D9)=0,"",SUM(Runde1!B9:D9)) ->  | H15: RD 12 | I15: 0 | J15: 0 | K15: =IF(COUNT(Runde1!H9:J9)=0,"",SUM(Runde1!H9:J9)) -> 
A16: RD 13 | B16: 0 | C16: 0 | D16: =IF(COUNT(Runde1!B10:D10)=0,"",SUM(Runde1!B10:D10)) ->  | H16: RD 13 | I16: 0 | J16: 0 | K16: =IF(COUNT(Runde1!H10:J10)=0,"",SUM(Runde1!H10:J10)) -> 
A17: RD 14 | B17: 0 | C17: 0 | D17: =IF(COUNT(Runde1!B11:D11)=0,"",SUM(Runde1!B11:D11)) ->  | E17: Sehr Gut | H17: RD 14 | I17: 0 | J17: 0 | K17: =IF(COUNT(Runde1!H11:J11)=0,"",SUM(Runde1!H11:J11)) ->  | L17: Sehr Gut
A18: RD 15 | B18: 0 | C18: 0 | H18: RD 15 | I18: 0 | J18: 0
A19: RD 16 | B19: 0 | C19: 0 | H19: RD 16 | I19: 0 | J19: 0
A20: RD 17 | B20: 0 | C20: 0 | H20: RD 17 | I20: 0 | J20: 0
A21: RD 18 | B21: 0 | C21: 0 | D21: =IF(COUNT(Runde1!B12:D12)=0,"",SUM(Runde1!B12:D12)) ->  | H21: RD 18 | I21: 0 | J21: 0 | K21: =IF(COUNT(Runde1!H12:J12)=0,"",SUM(Runde1!H12:J12)) -> 
A22: RD 19 | B22: 0 | C22: 0 | D22: =IF(COUNT(Runde1!B13:D13)=0,"",SUM(Runde1!B13:D13)) ->  | H22: RD 19 | I22: 0 | J22: 0 | K22: =IF(COUNT(Runde1!H13:J13)=0,"",SUM(Runde1!H13:J13)) -> 
A23: RD 20 | B23: 0 | C23: 0 | D23: =IF(COUNT(Runde1!B14:D14)=0,"",SUM(Runde1!B14:D14)) ->  | H23: RD 20 | I23: 0 | J23: 0 | K23: =IF(COUNT(Runde1!H14:J14)=0,"",SUM(Runde1!H14:J14)) -> 
A24: RD 21 | B24: 0 | C24: 0 | D24: =IF(COUNT(Runde1!B15:D15)=0,"",SUM(Runde1!B15:D15)) ->  | H24: RD 21 | I24: 0 | J24: 0 | K24: =IF(COUNT(Runde1!H15:J15)=0,"",SUM(Runde1!H15:J15)) -> 
A25: RD 22 | B25: 0 | C25: 0 | H25: RD 22 | I25: 0 | J25: 0
A26: RD 23 | B26: 0 | C26: 0 | D26: =IF(COUNT(Runde1!B16:D16)=0,"",SUM(Runde1!B16:D16)) ->  | H26: RD 23 | I26: 0 | J26: 0 | K26: =IF(COUNT(Runde1!H16:J16)=0,"",SUM(Runde1!H16:J16)) -> 
A27: RD 24 | B27: 0 | C27: 0 | D27: =IF(COUNT(Runde1!B17:D17)=0,"",SUM(Runde1!B17:D17)) ->  | H27: RD 24 | I27: 0 | J27: 0 | K27: =IF(COUNT(Runde1!H17:J17)=0,"",SUM(Runde1!H17:J17)) -> 
A28: RD 25 | B28: 0 | C28: 0 | D28: =IF(COUNT(Runde1!B18:D18)=0,"",SUM(Runde1!B18:D18)) ->  | H28: RD 25 | I28: 0 | J28: 0 | K28: =IF(COUNT(Runde1!H18:J18)=0,"",SUM(Runde1!H18:J18)) -> 
A29: RD 26 | B29: 0 | C29: 0 | H29: RD 26 | I29: 0 | J29: 0
A30: RD 27 | B30: 0 | C30: 0 | H30: RD 27 | I30: 0 | J30: 0
A31: RD 28 | B31: 0 | C31: 0 | H31: RD 28 | I31: 0 | J31: 0
A32: RD 29 | B32: 0 | C32: 0 | D32: =IF(COUNT(Runde1!B19:D19)=0,"",SUM(Runde1!B19:D19)) ->  | E32: =IF(E4=0,"Sieg","") ->  | H32: RD 29 | I32: 0 | J32: 0 | K32: =IF(COUNT(Runde1!H19:J19)=0,"",SUM(Runde1!H19:J19)) ->  | L32: =IF(L4=0,"Sieg","") -> 
A33: RD 30 | B33: 0 | C33: 0 | D33: =IF(COUNT(Runde1!B20:D20)=0,"",SUM(Runde1!B20:D20)) ->  | H33: RD 30 | I33: 0 | J33: 0 | K33: =IF(COUNT(Runde1!H20:J20)=0,"",SUM(Runde1!H20:J20)) -> 
B34: =SUM(B4:B33) -> 3 | C34: =SUM(C4:C33) -> 9 | D34: =SUM(D4:D33) -> 299 | E34: =SUM(D4:D33) -> 299 | I34: =SUM(I4:I33) -> 0 | J34: =SUM(J4:J33) -> 0 | K34: =SUM(K4:K33) -> 0 | L34: =SUM(K4:K33) -> 0
E35: =IF(E4 < L4, D1, IF(D2 < L4, K1, "Unentschieden")) -> Siggi

Sheet Rd. 2
F1: Sp. 1 | M1: Sp. 2
D2: Punkte | E2: 501 | F2: Start | K2: Punkte | L2: 501 | M2: Start
D3: Geworfen | E3: =SUM(D34) -> 0 | F3: Punkte | K3: Geworfen | L3: =SUM(K34) -> 0 | M3: Punkte
A4: RD 1 | B4: =COUNT(D4)*1 -> 0 | C4: =COUNT(D4)*3 -> 0 | D4: =IF(COUNT(Runde2!B2:D2)=0,"",SUM(Runde2!B2:D2)) ->  | E4: =SUM(E2-E3) -> 501 | F4: Rest | H4: RD 1 | I4: =COUNT(K4)*1 -> 0 | J4: =COUNT(K4)*3 -> 0 | K4: =IF(COUNT(Runde2!H2:J2)=0,"",SUM(Runde2!H2:J2)) ->  | L4: =SUM(L2-L3) -> 501 | M4: Rest
A5: RD 2 | B5: 0 | C5: 0 | D5: =IF(COUNT(Runde2!B3:D3)=0,"",SUM(Runde2!B3:D3)) ->  | H5: RD 2 | I5: 0 | J5: 0 | K5: =IF(COUNT(Runde2!H3:J3)=0,"",SUM(Runde2!H3:J3)) -> 
A6: RD 3 | B6: 0 | C6: 0 | D6: =IF(COUNT(Runde2!B4:D4)=0,"",SUM(Runde2!B4:D4)) ->  | E6: ø pro Spiel | F6: =SUM(E3)/B34 ->  | H6: RD 3 | I6: 0 | J6: 0 | K6: =IF(COUNT(Runde2!H4:J4)=0,"",SUM(Runde2!H4:J4)) ->  | L6: ø pro Spiel | M6: =SUM(L3)/I34 ->  | O6: Eintragen
A7: RD 4 | B7: 0 | C7: 0 | D7: =IF(COUNT(Runde2!B5:D5)=0,"",SUM(Runde2!B5:D5)) ->  | E7: ø pro Pfeil | F7: =SUM(E3)/C34 ->  | H7: RD 4 | I7: 0 | J7: 0 | K7: =IF(COUNT(Runde2!H5:J5)=0,"",SUM(Runde2!H5:J5)) ->  | L7: ø pro Pfeil | M7: =SUM(L3)/J34 -> 
A8: RD 5 | B8: 0 | C8: 0 | D8: =IF(COUNT(Runde2!B6:D6)=0,"",SUM(Runde2!B6:D6)) ->  | E8: Average | H8: RD 5 | I8: 0 | J8: 0 | K8: =IF(COUNT(Runde2!H6:J6)=0,"",SUM(Runde2!H6:J6)) ->  | L8: Average
A9: RD 6 | B9: 0 | C9: 0 | D9: =IF(COUNT(Runde2!B7:D7)=0,"",SUM(Runde2!B7:D7)) ->  | E9: =SUM(F6) ->  | H9: RD 6 | I9: 0 | J9: 0 | K9: =IF(COUNT(Runde2!H7:J7)=0,"",SUM(Runde2!H7:J7)) ->  | L9: =SUM(M6) -> 
A10: RD 7 | B10: 0 | C10: 0 | D10: =IF(COUNT(Runde2!B8:D8)=0,"",SUM(Runde2!B8:D8)) ->  | H10: RD 7 | I10: 0 | J10: 0 | K10: =IF(COUNT(Runde2!H8:J8)=0,"",SUM(Runde2!H8:J8)) -> 
A11: RD 8 | B11: 0 | C11: 0 | D11: =IF(COUNT(Runde2!B9:D9)=0,"",SUM(Runde2!B9:D9)) ->  | E11: Nicht Gut | H11: RD 8 | I11: 0 | J11: 0 | L11: Nicht Gut
A12: RD 9 | B12: 0 | C12: 0 | D12: =IF(COUNT(Runde2!B10:D10)=0,"",SUM(Runde2!B10:D10)) ->  | H12: RD 9 | I12: 0 | J12: 0 | K12: =IF(COUNT(Runde2!H10:J10)=0,"",SUM(Runde2!H10:J10)) -> 
A13: RD 10 | B13: 0 | C13: 0 | D13: =IF(COUNT(Runde2!B11:D11)=0,"",SUM(Runde2!B11:D11)) ->  | E13: Gut | H13: RD 10 | I13: 0 | J13: 0 | K13: =IF(COUNT(Runde2!H11:J11)=0,"",SUM(Runde2!H11:J11)) ->  | L13: Gut
A14: RD 11 | B14: 0 | C14: 0 | D14: =IF(COUNT(Runde2!B12:D12)=0,"",SUM(Runde2!B12:D12)) ->  | H14: RD 11 | I14: 0 | J14: 0 | K14: =IF(COUNT(Runde2!H12:J12)=0,"",SUM(Runde2!H12:J12)) -> 
A15: RD 12 | B15: 0 | C15: 0 | D15: =IF(COUNT(Runde2!B13:D13)=0,"",SUM(Runde2!B13:D13)) ->  | H15: RD 12 | I15: 0 | J15: 0 | K15: =IF(COUNT(Runde2!H13:J13)=0,"",SUM(Runde2!H13:J13)) -> 
A16: RD 13 | B16: 0 | C16: 0 | D16: =IF(COUNT(Runde2!B14:D14)=0,"",SUM(Runde2!B14:D14)) ->  | H16: RD 13 | I16: 0 | J16: 0 | K16: =IF(COUNT(Runde2!H14:J14)=0,"",SUM(Runde2!H14:J14)) -> 
A17: RD 14 | B17: 0 | C17: 0 | D17: =IF(COUNT(Runde2!B15:D15)=0,"",SUM(Runde2!B15:D15)) ->  | E17: Sehr Gut | H17: RD 14 | I17: 0 | J17: 0 | K17: =IF(COUNT(Runde2!H15:J15)=0,"",SUM(Runde2!H15:J15)) ->  | L17: Sehr Gut
A18: RD 15 | B18: 0 | C18: 0 | D18: =IF(COUNT(Runde2!B16:D16)=0,"",SUM(Runde2!B16:D16)) ->  | H18: RD 15 | I18: 0 | J18: 0 | K18: =IF(COUNT(Runde2!H16:J16)=0,"",SUM(Runde2!H16:J16)) -> 
A19: RD 16 | B19: 0 | C19: 0 | D19: =IF(COUNT(Runde2!B17:D17)=0,"",SUM(Runde2!B17:D17)) ->  | H19: RD 16 | I19: 0 | J19: 0 | K19: =IF(COUNT(Runde2!H17:J17)=0,"",SUM(Runde2!H17:J17)) -> 
A20: RD 17 | B20: 0 | C20: 0 | D20: =IF(COUNT(Runde2!B18:D18)=0,"",SUM(Runde2!B18:D18)) ->  | H20: RD 17 | I20: 0 | J20: 0 | K20: =IF(COUNT(Runde2!H18:J18)=0,"",SUM(Runde2!H18:J18)) -> 
A21: RD 18 | B21: 0 | C21: 0 | D21: =IF(COUNT(Runde2!B19:D19)=0,"",SUM(Runde2!B19:D19)) ->  | H21: RD 18 | I21: 0 | J21: 0 | K21: =IF(COUNT(Runde2!H19:J19)=0,"",SUM(Runde2!H19:J19)) -> 
A22: RD 19 | B22: 0 | C22: 0 | D22: =IF(COUNT(Runde2!B20:D20)=0,"",SUM(Runde2!B20:D20)) ->  | H22: RD 19 | I22: 0 | J22: 0 | K22: =IF(COUNT(Runde2!H20:J20)=0,"",SUM(Runde2!H20:J20)) -> 
A23: RD 20 | B23: 0 | C23: 0 | D23: =IF(COUNT(Runde2!B21:D21)=0,"",SUM(Runde2!B21:D21)) ->  | H23: RD 20 | I23: 0 | J23: 0 | K23: =IF(COUNT(Runde2!H21:J21)=0,"",SUM(Runde2!H21:J21)) -> 
A24: RD 21 | B24: 0 | C24: 0 | D24: =IF(COUNT(Runde2!B22:D22)=0,"",SUM(Runde2!B22:D22)) ->  | H24: RD 21 | I24: 0 | J24: 0 | K24: =IF(COUNT(Runde2!H22:J22)=0,"",SUM(Runde2!H22:J22)) -> 
A25: RD 22 | B25: 0 | C25: 0 | D25: =IF(COUNT(Runde2!B23:D23)=0,"",SUM(Runde2!B23:D23)) ->  | H25: RD 22 | I25: 0 | J25: 0 | K25: =IF(COUNT(Runde2!H23:J23)=0,"",SUM(Runde2!H23:J23)) -> 
A26: RD 23 | B26: 0 | C26: 0 | D26: =IF(COUNT(Runde2!B24:D24)=0,"",SUM(Runde2!B24:D24)) ->  | H26: RD 23 | I26: 0 | J26: 0 | K26: =IF(COUNT(Runde2!H24:J24)=0,"",SUM(Runde2!H24:J24)) -> 
A27: RD 24 | B27: 0 | C27: 0 | D27: =IF(COUNT(Runde2!B25:D25)=0,"",SUM(Runde2!B25:D25)) ->  | H27: RD 24 | I27: 0 | J27: 0 | K27: =IF(COUNT(Runde2!H25:J25)=0,"",SUM(Runde2!H25:J25)) -> 
A28: RD 25 | B28: 0 | C28: 0 | D28: =IF(COUNT(Runde2!B26:D26)=0,"",SUM(Runde2!B26:D26)) ->  | H28: RD 25 | I28: 0 | J28: 0 | K28: =IF(COUNT(Runde2!H26:J26)=0,"",SUM(Runde2!H26:J26)) -> 
A29: RD 26 | B29: 0 | C29: 0 | D29: =IF(COUNT(Runde2!B27:D27)=0,"",SUM(Runde2!B27:D27)) ->  | H29: RD 26 | I29: 0 | J29: 0 | K29: =IF(COUNT(Runde2!H27:J27)=0,"",SUM(Runde2!H27:J27)) -> 
A30: RD 27 | B30: 0 | C30: 0 | D30: =IF(COUNT(Runde2!B28:D28)=0,"",SUM(Runde2!B28:D28)) ->  | H30: RD 27 | I30: 0 | J30: 0 | K30: =IF(COUNT(Runde2!H28:J28)=0,"",SUM(Runde2!H28:J28)) -> 
A31: RD 28 | B31: 0 | C31: 0 | D31: =IF(COUNT(Runde2!B29:D29)=0,"",SUM(Runde2!B29:D29)) ->  | H31: RD 28 | I31: 0 | J31: 0 | K31: =IF(COUNT(Runde2!H29:J29)=0,"",SUM(Runde2!H29:J29)) -> 
A32: RD 29 | B32: 0 | C32: 0 | D32: =IF(COUNT(Runde2!B30:D30)=0,"",SUM(Runde2!B30:D30)) ->  | E32: =IF(E4=0,"Sieg","") ->  | H32: RD 29 | I32: 0 | J32: 0 | K32: =IF(COUNT(Runde2!H30:J30)=0,"",SUM(Runde2!H30:J30)) ->  | L32: =IF(L4=0,"Sieg","") -> 
A33: RD 30 | B33: 0 | C33: 0 | D33: =IF(COUNT(Runde2!B31:D31)=0,"",SUM(Runde2!B31:D31)) ->  | H33: RD 30 | I33: 0 | J33: 0 | K33: =IF(COUNT(Runde2!H31:J31)=0,"",SUM(Runde2!H31:J31)) -> 
B34: =SUM(B4:B33) -> 0 | C34: =SUM(C4:C33) -> 0 | D34: =IF(COUNT(Runde1!B21:D21)=0,"",SUM(Runde1!B21:D21)) ->  | E34: =SUM(D4:D33) -> 0 | I34: =SUM(I4:I33) -> 0 | J34: =SUM(J4:J33) -> 0 | K34: =IF(COUNT(Runde1!I21:K21)=0,"",SUM(Runde1!I21:K21)) -> 0 | L34: =SUM(K4:K32) -> 0
E35: =IF(E3 > L3, D1, IF(D2 > L3, K1, "Unentschieden")) -> 0

Sheet Rd. 3
F1: Sp. 1 | M1: Sp. 2
D2: Punkte | E2: 501 | F2: Start | K2: Punkte | L2: 501 | M2: Start
D3: Geworfen | E3: =SUM(D34) -> 66 | F3: Punkte | K3: Geworfen | L3: =SUM(K34) -> 99 | M3: Punkte
A4: RD 1 | B4: =COUNT(D4)*1 -> 1 | C4: =COUNT(D4)*3 -> 3 | D4: =IF(COUNT(Runde3!B2:D2)=0,"",SUM(Runde3!B2:D2)) -> 66 | E4: =SUM(E2-E3) -> 435 | F4: Rest | H4: RD 1 | I4: =COUNT(K4)*1 -> 1 | J4: =COUNT(K4)*3 -> 3 | K4: =IF(COUNT(Runde3!H2:J2)=0,"",SUM(Runde3!H2:J2)) -> 99 | L4: =SUM(L2-L3) -> 402 | M4: Rest
A5: RD 2 | B5: 0 | C5: 0 | D5: =IF(COUNT(Runde3!B3:D3)=0,"",SUM(Runde3!B3:D3)) ->  | H5: RD 2 | I5: 0 | J5: 0 | K5: =IF(COUNT(Runde3!H3:J3)=0,"",SUM(Runde3!H3:J3)) -> 
A6: RD 3 | B6: 0 | C6: 0 | D6: =IF(COUNT(Runde3!B4:D4)=0,"",SUM(Runde3!B4:D4)) ->  | E6: ø pro Spiel | F6: =SUM(E3)/B34 -> 66 | H6: RD 3 | I6: 0 | J6: 0 | K6: =IF(COUNT(Runde3!H4:J4)=0,"",SUM(Runde3!H4:J4)) ->  | L6: ø pro Spiel | M6: =SUM(L3)/I34 -> 99 | O6: Eintragen
A7: RD 4 | B7: 0 | C7: 0 | D7: =IF(COUNT(Runde3!B5:D5)=0,"",SUM(Runde3!B5:D5)) ->  | E7: ø pro Pfeil | F7: =SUM(E3)/C34 -> 22 | H7: RD 4 | I7: 0 | J7: 0 | K7: =IF(COUNT(Runde3!H5:J5)=0,"",SUM(Runde3!H5:J5)) ->  | L7: ø pro Pfeil | M7: =SUM(L3)/J34 -> 33
A8: RD 5 | B8: 0 | C8: 0 | D8: =IF(COUNT(Runde3!B6:D6)=0,"",SUM(Runde3!B6:D6)) ->  | E8: Average | H8: RD 5 | I8: 0 | J8: 0 | K8: =IF(COUNT(Runde3!H6:J6)=0,"",SUM(Runde3!H6:J6)) ->  | L8: Average
A9: RD 6 | B9: 0 | C9: 0 | D9: =IF(COUNT(Runde3!B7:D7)=0,"",SUM(Runde3!B7:D7)) ->  | E9: =SUM(F6) -> 66 | H9: RD 6 | I9: 0 | J9: 0 | K9: =IF(COUNT(Runde3!H7:J7)=0,"",SUM(Runde3!H7:J7)) ->  | L9: =SUM(M6) -> 99
A10: RD 7 | B10: 0 | C10: 0 | D10: =IF(COUNT(Runde3!B8:D8)=0,"",SUM(Runde3!B8:D8)) ->  | H10: RD 7 | I10: 0 | J10: 0 | K10: =IF(COUNT(Runde3!H8:J8)=0,"",SUM(Runde3!H8:J8)) -> 
A11: RD 8 | B11: 0 | C11: 0 | D11: =IF(COUNT(Runde3!B9:D9)=0,"",SUM(Runde3!B9:D9)) ->  | E11: Nicht Gut | H11: RD 8 | I11: 0 | J11: 0 | K11: =IF(COUNT(Runde3!H9:J9)=0,"",SUM(Runde3!H9:J9)) ->  | L11: Nicht Gut
A12: RD 9 | B12: 0 | C12: 0 | D12: =IF(COUNT(Runde3!B10:D10)=0,"",SUM(Runde3!B10:D10)) ->  | H12: RD 9 | I12: 0 | J12: 0 | K12: =IF(COUNT(Runde3!H10:J10)=0,"",SUM(Runde3!H10:J10)) -> 
A13: RD 10 | B13: 0 | C13: 0 | D13: =IF(COUNT(Runde3!B11:D11)=0,"",SUM(Runde3!B11:D11)) ->  | E13: Gut | H13: RD 10 | I13: 0 | J13: 0 | K13: =IF(COUNT(Runde3!H11:J11)=0,"",SUM(Runde3!H11:J11)) ->  | L13: Gut
A14: RD 11 | B14: 0 | C14: 0 | D14: =IF(COUNT(Runde3!B12:D12)=0,"",SUM(Runde3!B12:D12)) ->  | H14: RD 11 | I14: 0 | J14: 0 | K14: =IF(COUNT(Runde3!H12:J12)=0,"",SUM(Runde3!H12:J12)) -> 
A15: RD 12 | B15: 0 | C15: 0 | D15: =IF(COUNT(Runde3!B13:D13)=0,"",SUM(Runde3!B13:D13)) ->  | H15: RD 12 | I15: 0 | J15: 0 | K15: =IF(COUNT(Runde3!H13:J13)=0,"",SUM(Runde3!H13:J13)) -> 
A16: RD 13 | B16: 0 | C16: 0 | H16: RD 13 | I16: 0 | J16: 0 | K16: =IF(COUNT(Runde3!H14:J14)=0,"",SUM(Runde3!H14:J14)) -> 
A17: RD 14 | B17: 0 | C17: 0 | D17: =IF(COUNT(Runde3!B15:D15)=0,"",SUM(Runde3!B15:D15)) ->  | E17: Sehr Gut | H17: RD 14 | I17: 0 | J17: 0 | K17: =IF(COUNT(Runde3!H15:J15)=0,"",SUM(Runde3!H15:J15)) ->  | L17: Sehr Gut
A18: RD 15 | B18: 0 | C18: 0 | D18: =IF(COUNT(Runde3!B16:D16)=0,"",SUM(Runde3!B16:D16)) ->  | H18: RD 15 | I18: 0 | J18: 0 | K18: =IF(COUNT(Runde3!H16:J16)=0,"",SUM(Runde3!H16:J16)) -> 
A19: RD 16 | B19: 0 | C19: 0 | D19: =IF(COUNT(Runde3!B17:D17)=0,"",SUM(Runde3!B17:D17)) ->  | H19: RD 16 | I19: 0 | J19: 0 | K19: =IF(COUNT(Runde3!H17:J17)=0,"",SUM(Runde3!H17:J17)) -> 
A20: RD 17 | B20: 0 | C20: 0 | D20: =IF(COUNT(Runde3!B18:D18)=0,"",SUM(Runde3!B18:D18)) ->  | H20: RD 17 | I20: 0 | J20: 0 | K20: =IF(COUNT(Runde3!H18:J18)=0,"",SUM(Runde3!H18:J18)) -> 
A21: RD 18 | B21: 0 | C21: 0 | D21: =IF(COUNT(Runde3!B19:D19)=0,"",SUM(Runde3!B19:D19)) ->  | H21: RD 18 | I21: 0 | J21: 0 | K21: =IF(COUNT(Runde3!H19:J19)=0,"",SUM(Runde3!H19:J19)) -> 
A22: RD 19 | B22: 0 | C22: 0 | D22: =IF(COUNT(Runde3!B20:D20)=0,"",SUM(Runde3!B20:D20)) ->  | H22: RD 19 | I22: 0 | J22: 0 | K22: =IF(COUNT(Runde3!H20:J20)=0,"",SUM(Runde3!H20:J20)) -> 
A23: RD 20 | B23: 0 | C23: 0 | D23: =IF(COUNT(Runde3!B21:D21)=0,"",SUM(Runde3!B21:D21)) ->  | H23: RD 20 | I23: 0 | J23: 0 | K23: =IF(COUNT(Runde3!H21:J21)=0,"",SUM(Runde3!H21:J21)) -> 
A24: RD 21 | B24: 0 | C24: 0 | D24: =IF(COUNT(Runde3!B22:D22)=0,"",SUM(Runde3!B22:D22)) ->  | H24: RD 21 | I24: 0 | J24: 0 | K24: =IF(COUNT(Runde3!H22:J22)=0,"",SUM(Runde3!H22:J22)) -> 
A25: RD 22 | B25: 0 | C25: 0 | D25: =IF(COUNT(Runde3!B23:D23)=0,"",SUM(Runde3!B23:D23)) ->  | H25: RD 22 | I25: 0 | J25: 0 | K25: =IF(COUNT(Runde3!H23:J23)=0,"",SUM(Runde3!H23:J23)) -> 
A26: RD 23 | B26: 0 | C26: 0 | D26: =IF(COUNT(Runde3!B24:D24)=0,"",SUM(Runde3!B24:D24)) ->  | H26: RD 23 | I26: 0 | J26: 0 | K26: =IF(COUNT(Runde3!H24:J24)=0,"",SUM(Runde3!H24:J24)) -> 
A27: RD 24 | B27: 0 | C27: 0 | D27: =IF(COUNT(Runde3!B25:D25)=0,"",SUM(Runde3!B25:D25)) ->  | H27: RD 24 | I27: 0 | J27: 0 | K27: =IF(COUNT(Runde3!H25:J25)=0,"",SUM(Runde3!H25:J25)) -> 
A28: RD 25 | B28: 0 | C28: 0 | D28: =IF(COUNT(Runde3!B26:D26)=0,"",SUM(Runde3!B26:D26)) ->  | H28: RD 25 | I28: 0 | J28: 0 | K28: =IF(COUNT(Runde3!H26:J26)=0,"",SUM(Runde3!H26:J26)) -> 
A29: RD 26 | B29: 0 | C29: 0 | D29: =IF(COUNT(Runde3!B27:D27)=0,"",SUM(Runde3!B27:D27)) ->  | H29: RD 26 | I29: 0 | J29: 0 | K29: =IF(COUNT(Runde3!H27:J27)=0,"",SUM(Runde3!H27:J27)) -> 
A30: RD 27 | B30: 0 | C30: 0 | D30: =IF(COUNT(Runde3!B28:D28)=0,"",SUM(Runde3!B28:D28)) ->  | H30: RD 27 | I30: 0 | J30: 0 | K30: =IF(COUNT(Runde3!H28:J28)=0,"",SUM(Runde3!H28:J28)) -> 
A31: RD 28 | B31: 0 | C31: 0 | D31: =IF(COUNT(Runde3!B29:D29)=0,"",SUM(Runde3!B29:D29)) ->  | H31: RD 28 | I31: 0 | J31: 0 | K31: =IF(COUNT(Runde3!H29:J29)=0,"",SUM(Runde3!H29:J29)) -> 
A32: RD 29 | B32: 0 | C32: 0 | D32: =IF(COUNT(Runde3!B30:D30)=0,"",SUM(Runde3!B30:D30)) ->  | E32: =IF(E4=0,"Sieg","") ->  | H32: RD 29 | I32: 0 | J32: 0 | K32: =IF(COUNT(Runde3!H30:J30)=0,"",SUM(Runde3!H30:J30)) ->  | L32: =IF(L4=0,"Sieg","") -> 
A33: RD 30 | B33: 0 | C33: 0 | D33: =IF(COUNT(Runde3!B31:D31)=0,"",SUM(Runde3!B31:D31)) ->  | H33: RD 30 | I33: 0 | J33: 0 | K33: =IF(COUNT(Runde3!H31:J31)=0,"",SUM(Runde3!H31:J31)) -> 
B34: =SUM(B4:B33) -> 1 | C34: =SUM(C4:C33) -> 3 | D34: =SUM(D4:D33) -> 66 | E34: =SUM(D4:D32) -> 66 | I34: =SUM(I4:I33) -> 1 | J34: =SUM(J4:J33) -> 3 | K34: =SUM(K4:K33) -> 99 | L34: =SUM(K4:K32) -> 99
E35: =IF(E3 > L3, D1, IF(D2 > L3, K1, "Unentschieden")) -> 0

Sheet Rd. 4
F1: Sp. 1 | M1: Sp. 2
D2: Punkte | E2: 501 | F2: Start | K2: Punkte | L2: 501 | M2: Start
D3: Geworfen | E3: =SUM(D34) -> 0 | F3: Punkte | K3: Geworfen | L3: =SUM(K34) -> 105 | M3: Punkte
A4: RD 1 | B4: =COUNT(D4)*1 -> 1 | C4: =COUNT(D4)*3 -> 3 | D4: =IF(COUNT(Runde4!B2:D2)=0,"",SUM(Runde4!B2:D2)) -> 64 | E4: =SUM(E2-E3) -> 501 | F4: Rest | H4: RD 1 | I4: =COUNT(K4)*1 -> 1 | J4: =COUNT(K4)*3 -> 3 | K4: =IF(COUNT(Runde4!H2:J2)=0,"",SUM(Runde4!H2:J2)) -> 105 | L4: =SUM(L2-L3) -> 396 | M4: Rest
A5: RD 2 | B5: 0 | C5: 0 | D5: =IF(COUNT(Runde4!B3:D3)=0,"",SUM(Runde4!B3:D3)) ->  | H5: RD 2 | I5: 0 | J5: 0 | K5: =IF(COUNT(Runde4!H3:J3)=0,"",SUM(Runde4!H3:J3)) ->  | O5: Eintragen
A6: RD 3 | B6: 0 | C6: 0 | D6: =IF(COUNT(Runde4!B4:D4)=0,"",SUM(Runde4!B4:D4)) ->  | E6: ø pro Spiel | F6: =SUM(E3)/B34 -> 0 | H6: RD 3 | I6: 0 | J6: 0 | K6: =IF(COUNT(Runde4!H4:J4)=0,"",SUM(Runde4!H4:J4)) ->  | L6: ø pro Spiel | M6: =SUM(L3)/I34 -> 105
A7: RD 4 | B7: 0 | C7: 0 | D7: =IF(COUNT(Runde4!B5:D5)=0,"",SUM(Runde4!B5:D5)) ->  | E7: ø pro Pfeil | F7: =SUM(E3)/C34 -> 0 | H7: RD 4 | I7: 0 | J7: 0 | K7: =IF(COUNT(Runde4!H5:J5)=0,"",SUM(Runde4!H5:J5)) ->  | L7: ø pro Pfeil | M7: =SUM(L3)/J34 -> 35
A8: RD 5 | B8: 0 | C8: 0 | D8: =IF(COUNT(Runde4!B6:D6)=0,"",SUM(Runde4!B6:D6)) ->  | E8: Average | H8: RD 5 | I8: 0 | J8: 0 | K8: =IF(COUNT(Runde4!H6:J6)=0,"",SUM(Runde4!H6:J6)) ->  | L8: Average
A9: RD 6 | B9: 0 | C9: 0 | D9: =IF(COUNT(Runde4!B7:D7)=0,"",SUM(Runde4!B7:D7)) ->  | E9: =SUM(F6) -> 0 | H9: RD 6 | I9: 0 | J9: 0 | K9: =IF(COUNT(Runde4!H7:J7)=0,"",SUM(Runde4!H7:J7)) ->  | L9: =SUM(M6) -> 105
A10: RD 7 | B10: 0 | C10: 0 | D10: =IF(COUNT(Runde4!B8:D8)=0,"",SUM(Runde4!B8:D8)) ->  | H10: RD 7 | I10: 0 | J10: 0 | K10: =IF(COUNT(Runde4!H8:J8)=0,"",SUM(Runde4!H8:J8)) -> 
A11: RD 8 | B11: 0 | C11: 0 | D11: =IF(COUNT(Runde4!B9:D9)=0,"",SUM(Runde4!B9:D9)) ->  | E11: Nicht Gut | H11: RD 8 | I11: 0 | J11: 0 | L11: Nicht Gut
A12: RD 9 | B12: 0 | C12: 0 | D12: =IF(COUNT(Runde4!B10:D10)=0,"",SUM(Runde4!B10:D10)) ->  | H12: RD 9 | I12: 0 | J12: 0 | K12: =IF(COUNT(Runde4!H9:J9)=0,"",SUM(Runde4!H9:J9)) -> 
A13: RD 10 | B13: 0 | C13: 0 | D13: =IF(COUNT(Runde4!B11:D11)=0,"",SUM(Runde4!B11:D11)) ->  | E13: Gut | H13: RD 10 | I13: 0 | J13: 0 | L13: Gut
A14: RD 11 | B14: 0 | C14: 0 | D14: =IF(COUNT(Runde4!B12:D12)=0,"",SUM(Runde4!B12:D12)) ->  | H14: RD 11 | I14: 0 | J14: 0
A15: RD 12 | B15: 0 | C15: 0 | D15: =IF(COUNT(Runde4!B13:D13)=0,"",SUM(Runde4!B13:D13)) ->  | H15: RD 12 | I15: 0 | J15: 0 | K15: =IF(COUNT(Runde4!H10:J10)=0,"",SUM(Runde4!H10:J10)) -> 
A16: RD 13 | B16: 0 | C16: 0 | D16: =IF(COUNT(Runde4!B14:D14)=0,"",SUM(Runde4!B14:D14)) ->  | H16: RD 13 | I16: 0 | J16: 0 | K16: =IF(COUNT(Runde4!H11:J11)=0,"",SUM(Runde4!H11:J11)) -> 
A17: RD 14 | B17: 0 | C17: 0 | D17: =IF(COUNT(Runde4!B15:D15)=0,"",SUM(Runde4!B15:D15)) ->  | E17: Sehr Gut | H17: RD 14 | I17: 0 | J17: 0 | K17: =IF(COUNT(Runde4!H12:J12)=0,"",SUM(Runde4!H12:J12)) ->  | L17: Sehr Gut
A18: RD 15 | B18: 0 | C18: 0 | D18: =IF(COUNT(Runde4!B16:D16)=0,"",SUM(Runde4!B16:D16)) ->  | H18: RD 15 | I18: 0 | J18: 0
A19: RD 16 | B19: 0 | C19: 0 | D19: =IF(COUNT(Runde4!B17:D17)=0,"",SUM(Runde4!B17:D17)) ->  | H19: RD 16 | I19: 0 | J19: 0
A20: RD 17 | B20: 0 | C20: 0 | D20: =IF(COUNT(Runde4!B18:D18)=0,"",SUM(Runde4!B18:D18)) ->  | H20: RD 17 | I20: 0 | J20: 0
A21: RD 18 | B21: 0 | C21: 0 | D21: =IF(COUNT(Runde4!B19:D19)=0,"",SUM(Runde4!B19:D19)) ->  | H21: RD 18 | I21: 0 | J21: 0 | K21: =IF(COUNT(Runde4!H13:J13)=0,"",SUM(Runde4!H13:J13)) -> 
A22: RD 19 | B22: 0 | C22: 0 | D22: =IF(COUNT(Runde4!B20:D20)=0,"",SUM(Runde4!B20:D20)) ->  | H22: RD 19 | I22: 0 | J22: 0 | K22: =IF(COUNT(Runde4!H14:J14)=0,"",SUM(Runde4!H14:J14)) -> 
A23: RD 20 | B23: 0 | C23: 0 | D23: =IF(COUNT(Runde4!B21:D21)=0,"",SUM(Runde4!B21:D21)) ->  | H23: RD 20 | I23: 0 | J23: 0 | K23: =IF(COUNT(Runde4!H15:J15)=0,"",SUM(Runde4!H15:J15)) -> 
A24: RD 21 | B24: 0 | C24: 0 | D24: =IF(COUNT(Runde4!B22:D22)=0,"",SUM(Runde4!B22:D22)) ->  | H24: RD 21 | I24: 0 | J24: 0 | K24: =IF(COUNT(Runde4!H16:J16)=0,"",SUM(Runde4!H16:J16)) -> 
A25: RD 22 | B25: 0 | C25: 0 | D25: =IF(COUNT(Runde4!B23:D23)=0,"",SUM(Runde4!B23:D23)) ->  | H25: RD 22 | I25: 0 | J25: 0
A26: RD 23 | B26: 0 | C26: 0 | D26: =IF(COUNT(Runde4!B24:D24)=0,"",SUM(Runde4!B24:D24)) ->  | H26: RD 23 | I26: 0 | J26: 0 | K26: =IF(COUNT(Runde4!H17:J17)=0,"",SUM(Runde4!H17:J17)) -> 
A27: RD 24 | B27: 0 | C27: 0 | D27: =IF(COUNT(Runde4!B25:D25)=0,"",SUM(Runde4!B25:D25)) ->  | H27: RD 24 | I27: 0 | J27: 0 | K27: =IF(COUNT(Runde4!H18:J18)=0,"",SUM(Runde4!H18:J18)) -> 
A28: RD 25 | B28: 0 | C28: 0 | D28: =IF(COUNT(Runde4!B26:D26)=0,"",SUM(Runde4!B26:D26)) ->  | H28: RD 25 | I28: 0 | J28: 0 | K28: =IF(COUNT(Runde4!H19:J19)=0,"",SUM(Runde4!H19:J19)) -> 
A29: RD 26 | B29: 0 | C29: 0 | D29: =IF(COUNT(Runde4!B27:D27)=0,"",SUM(Runde4!B27:D27)) ->  | H29: RD 26 | I29: 0 | J29: 0
A30: RD 27 | B30: 0 | C30: 0 | D30: =IF(COUNT(Runde4!B28:D28)=0,"",SUM(Runde4!B28:D28)) ->  | H30: RD 27 | I30: 0 | J30: 0
A31: RD 28 | B31: 0 | C31: 0 | D31: =IF(COUNT(Runde4!B29:D29)=0,"",SUM(Runde4!B29:D29)) ->  | H31: RD 28 | I31: 0 | J31: 0
A32: RD 29 | B32: 0 | C32: 0 | D32: =IF(COUNT(Runde4!B30:D30)=0,"",SUM(Runde4!B30:D30)) ->  | E32: =IF(E4=0,"Sieg","") ->  | H32: RD 29 | I32: 0 | J32: 0 | K32: =IF(COUNT(Runde4!H20:J20)=0,"",SUM(Runde4!H20:J20)) ->  | L32: =IF(L4=0,"Sieg","") -> 
A33: RD 30 | B33: 0 | C33: 0 | D33: =IF(COUNT(Runde4!B31:D31)=0,"",SUM(Runde4!B31:D31)) ->  | H33: RD 30 | I33: 0 | J33: 0 | K33: =IF(COUNT(Runde4!H21:J21)=0,"",SUM(Runde4!H21:J21)) -> 
B34: =SUM(B4:B33) -> 1 | C34: =SUM(C4:C33) -> 3 | D34: =SUM(D5:D33) -> 0 | E34: =SUM(D4:D32) -> 64 | I34: =SUM(I4:I33) -> 1 | J34: =SUM(J4:J33) -> 3 | K34: =SUM(K4:K33) -> 105 | L34: =SUM(K4:K32) -> 105
E35: =IF(E3 > L3, D1, IF(D2 > L3, K1, "Unentschieden")) -> 0

Sheet Rd. 5
F1: Sp. 1 | M1: Sp. 2
D2: Punkte | E2: 501 | F2: Start | K2: Punkte | L2: 501 | M2: Start
D3: Geworfen | E3: =SUM(D34) -> 0 | F3: Punkte | K3: Geworfen | L3: =SUM(K34) -> 0 | M3: Punkte
A4: RD 1 | B4: =COUNT(D4)*1 -> 0 | C4: =COUNT(D4)*3 -> 0 | D4: =IF(COUNT(Runde5!B2:D2)=0,"",SUM(Runde5!B2:D2)) ->  | E4: =SUM(E2-E3) -> 501 | F4: Rest | H4: RD 1 | I4: =COUNT(K4)*1 -> 0 | J4: =COUNT(K4)*3 -> 0 | K4: =IF(COUNT(Runde5!H2:J2)=0,"",SUM(Runde5!H2:J2)) ->  | L4: =SUM(L2-L3) -> 501 | M4: Rest
A5: RD 2 | B5: 0 | C5: 0 | D5: =IF(COUNT(Runde5!B3:D3)=0,"",SUM(Runde5!B3:D3)) ->  | H5: RD 2 | I5: 0 | J5: 0 | K5: =IF(COUNT(Runde5!H3:J3)=0,"",SUM(Runde5!H3:J3)) ->  | O5: Eintragen
A6: RD 3 | B6: 0 | C6: 0 | D6: =IF(COUNT(Runde5!B4:D4)=0,"",SUM(Runde5!B4:D4)) ->  | E6: ø pro Spiel | F6: =SUM(E3)/B34 ->  | H6: RD 3 | I6: 0 | J6: 0 | K6: =IF(COUNT(Runde5!H4:J4)=0,"",SUM(Runde5!H4:J4)) ->  | L6: ø pro Spiel | M6: =SUM(L3)/I34 -> 
A7: RD 4 | B7: 0 | C7: 0 | D7: =IF(COUNT(Runde5!B5:D5)=0,"",SUM(Runde5!B5:D5)) ->  | E7: ø pro Pfeil | F7: =SUM(E3)/C34 ->  | H7: RD 4 | I7: 0 | J7: 0 | K7: =IF(COUNT(Runde5!H5:J5)=0,"",SUM(Runde5!H5:J5)) ->  | L7: ø pro Pfeil | M7: =SUM(L3)/J34 -> 
A8: RD 5 | B8: 0 | C8: 0 | D8: =IF(COUNT(Runde5!B6:D6)=0,"",SUM(Runde5!B6:D6)) ->  | E8: Average | H8: RD 5 | I8: 0 | J8: 0 | K8: =IF(COUNT(Runde5!H6:J6)=0,"",SUM(Runde5!H6:J6)) ->  | L8: Average
A9: RD 6 | B9: 0 | C9: 0 | D9: =IF(COUNT(Runde5!B7:D7)=0,"",SUM(Runde5!B7:D7)) ->  | E9: =SUM(F6) ->  | H9: RD 6 | I9: 0 | J9: 0 | K9: =IF(COUNT(Runde5!H7:J7)=0,"",SUM(Runde5!H7:J7)) ->  | L9: =SUM(M6) -> 
A10: RD 7 | B10: 0 | C10: 0 | D10: =IF(COUNT(Runde5!B8:D8)=0,"",SUM(Runde5!B8:D8)) ->  | H10: RD 7 | I10: 0 | J10: 0 | K10: =IF(COUNT(Runde5!H8:J8)=0,"",SUM(Runde5!H8:J8)) -> 
A11: RD 8 | B11: 0 | C11: 0 | E11: Nicht Gut | H11: RD 8 | I11: 0 | J11: 0 | L11: Nicht Gut
A12: RD 9 | B12: 0 | C12: 0 | D12: =IF(COUNT(Runde5!B9:D9)=0,"",SUM(Runde5!B9:D9)) ->  | H12: RD 9 | I12: 0 | J12: 0 | K12: =IF(COUNT(Runde5!H9:J9)=0,"",SUM(Runde5!H9:J9)) -> 
A13: RD 10 | B13: 0 | C13: 0 | E13: Gut | H13: RD 10 | I13: 0 | J13: 0 | L13: Gut
A14: RD 11 | B14: 0 | C14: 0 | H14: RD 11 | I14: 0 | J14: 0
A15: RD 12 | B15: 0 | C15: 0 | D15: =IF(COUNT(Runde5!B10:D10)=0,"",SUM(Runde5!B10:D10)) ->  | H15: RD 12 | I15: 0 | J15: 0 | K15: =IF(COUNT(Runde5!H10:J10)=0,"",SUM(Runde5!H10:J10)) -> 
A16: RD 13 | B16: 0 | C16: 0 | D16: =IF(COUNT(Runde5!B11:D11)=0,"",SUM(Runde5!B11:D11)) ->  | H16: RD 13 | I16: 0 | J16: 0 | K16: =IF(COUNT(Runde5!H11:J11)=0,"",SUM(Runde5!H11:J11)) -> 
A17: RD 14 | B17: 0 | C17: 0 | D17: =IF(COUNT(Runde5!B12:D12)=0,"",SUM(Runde5!B12:D12)) ->  | E17: Sehr Gut | H17: RD 14 | I17: 0 | J17: 0 | K17: =IF(COUNT(Runde5!H12:J12)=0,"",SUM(Runde5!H12:J12)) ->  | L17: Sehr Gut
A18: RD 15 | B18: 0 | C18: 0 | H18: RD 15 | I18: 0 | J18: 0
A19: RD 16 | B19: 0 | C19: 0 | H19: RD 16 | I19: 0 | J19: 0
A20: RD 17 | B20: 0 | C20: 0 | H20: RD 17 | I20: 0 | J20: 0
A21: RD 18 | B21: 0 | C21: 0 | D21: =IF(COUNT(Runde5!B13:D13)=0,"",SUM(Runde5!B13:D13)) ->  | H21: RD 18 | I21: 0 | J21: 0 | K21: =IF(COUNT(Runde5!H13:J13)=0,"",SUM(Runde5!H13:J13)) -> 
A22: RD 19 | B22: 0 | C22: 0 | D22: =IF(COUNT(Runde5!B14:D14)=0,"",SUM(Runde5!B14:D14)) ->  | H22: RD 19 | I22: 0 | J22: 0 | K22: =IF(COUNT(Runde5!H14:J14)=0,"",SUM(Runde5!H14:J14)) -> 
A23: RD 20 | B23: 0 | C23: 0 | D23: =IF(COUNT(Runde5!B15:D15)=0,"",SUM(Runde5!B15:D15)) ->  | H23: RD 20 | I23: 0 | J23: 0 | K23: =IF(COUNT(Runde5!H15:J15)=0,"",SUM(Runde5!H15:J15)) -> 
A24: RD 21 | B24: 0 | C24: 0 | D24: =IF(COUNT(Runde5!B16:D16)=0,"",SUM(Runde5!B16:D16)) ->  | H24: RD 21 | I24: 0 | J24: 0 | K24: =IF(COUNT(Runde5!H16:J16)=0,"",SUM(Runde5!H16:J16)) -> 
A25: RD 22 | B25: 0 | C25: 0 | H25: RD 22 | I25: 0 | J25: 0
A26: RD 23 | B26: 0 | C26: 0 | D26: =IF(COUNT(Runde5!B17:D17)=0,"",SUM(Runde5!B17:D17)) ->  | H26: RD 23 | I26: 0 | J26: 0 | K26: =IF(COUNT(Runde5!H17:J17)=0,"",SUM(Runde5!H17:J17)) -> 
A27: RD 24 | B27: 0 | C27: 0 | D27: =IF(COUNT(Runde5!B18:D18)=0,"",SUM(Runde5!B18:D18)) ->  | H27: RD 24 | I27: 0 | J27: 0 | K27: =IF(COUNT(Runde5!H18:J18)=0,"",SUM(Runde5!H18:J18)) -> 
A28: RD 25 | B28: 0 | C28: 0 | D28: =IF(COUNT(Runde5!B19:D19)=0,"",SUM(Runde5!B19:D19)) ->  | H28: RD 25 | I28: 0 | J28: 0 | K28: =IF(COUNT(Runde5!H19:J19)=0,"",SUM(Runde5!H19:J19)) -> 
A29: RD 26 | B29: 0 | C29: 0 | H29: RD 26 | I29: 0 | J29: 0
A30: RD 27 | B30: 0 | C30: 0 | H30: RD 27 | I30: 0 | J30: 0
A31: RD 28 | B31: 0 | C31: 0 | H31: RD 28 | I31: 0 | J31: 0
A32: RD 29 | B32: 0 | C32: 0 | D32: =IF(COUNT(Runde5!B20:D20)=0,"",SUM(Runde5!B20:D20)) ->  | E32: =IF(E4=0,"Sieg","") ->  | H32: RD 29 | I32: 0 | J32: 0 | K32: =IF(COUNT(Runde5!H20:J20)=0,"",SUM(Runde5!H20:J20)) ->  | L32: =IF(L4=0,"Sieg","") -> 
A33: RD 30 | B33: 0 | C33: 0 | D33: =IF(COUNT(Runde5!B21:D21)=0,"",SUM(Runde5!B21:D21)) ->  | H33: RD 30 | I33: 0 | J33: 0 | K33: =IF(COUNT(Runde5!H21:J21)=0,"",SUM(Runde5!H21:J21)) -> 
B34: =SUM(B4:B33) -> 0 | C34: =SUM(C4:C33) -> 0 | D34: =SUM(D4:D33) -> 0 | E34: =SUM(D4:D32) -> 0 | I34: =SUM(I4:I33) -> 0 | J34: =SUM(J4:J33) -> 0 | K34: =SUM(K4:K33) -> 0 | L34: =SUM(K4:K32) -> 0
E35: =IF(E3 > L3, D1, IF(D2 > L3, K1, "Unentschieden")) -> 0

Sheet Rd. 6
F1: Sp. 1 | M1: Sp. 2
D2: Punkte | E2: 501 | F2: Start | K2: Punkte | L2: 501 | M2: Start
D3: Geworfen | E3: =SUM(D34) -> 0 | F3: Punkte | K3: Geworfen | L3: =SUM(K34) -> 0 | M3: Punkte
A4: RD 1 | B4: =COUNT(D4)*1 -> 0 | C4: =COUNT(D4)*3 -> 0 | D4: =IF(COUNT(Runde6!B2:D2)=0,"",SUM(Runde6!B2:D2)) ->  | E4: =SUM(E2-E3) -> 501 | F4: Rest | H4: RD 1 | I4: =COUNT(K4)*1 -> 0 | J4: =COUNT(K4)*3 -> 0 | K4: =IF(COUNT(Runde6!H2:J2)=0,"",SUM(Runde6!H2:J2)) ->  | L4: =SUM(L2-L3) -> 501 | M4: Rest
A5: RD 2 | B5: 0 | C5: 0 | D5: =IF(COUNT(Runde6!B3:D3)=0,"",SUM(Runde6!B3:D3)) ->  | H5: RD 2 | I5: 0 | J5: 0 | K5: =IF(COUNT(Runde6!H3:J3)=0,"",SUM(Runde6!H3:J3)) ->  | O5: Eintragen
A6: RD 3 | B6: 0 | C6: 0 | D6: =IF(COUNT(Runde6!B4:D4)=0,"",SUM(Runde6!B4:D4)) ->  | E6: ø pro Spiel | F6: =SUM(E3)/B34 ->  | H6: RD 3 | I6: 0 | J6: 0 | K6: =IF(COUNT(Runde6!H4:J4)=0,"",SUM(Runde6!H4:J4)) ->  | L6: ø pro Spiel | M6: =SUM(L3)/I34 -> 
A7: RD 4 | B7: 0 | C7: 0 | D7: =IF(COUNT(Runde6!B5:D5)=0,"",SUM(Runde6!B5:D5)) ->  | E7: ø pro Pfeil | F7: =SUM(E3)/C34 ->  | H7: RD 4 | I7: =COUNT(K7)*1 -> 0 | J7: 0 | K7: =IF(COUNT(Runde6!H5:J5)=0,"",SUM(Runde6!H5:J5)) ->  | L7: ø pro Pfeil | M7: =SUM(L3)/J34 -> 
A8: RD 5 | B8: 0 | C8: 0 | D8: =IF(COUNT(Runde6!B6:D6)=0,"",SUM(Runde6!B6:D6)) ->  | E8: Average | H8: RD 5 | I8: 0 | J8: 0 | K8: =IF(COUNT(Runde6!H6:J6)=0,"",SUM(Runde6!H6:J6)) ->  | L8: Average
A9: RD 6 | B9: 0 | C9: 0 | D9: =IF(COUNT(Runde6!B7:D7)=0,"",SUM(Runde6!B7:D7)) ->  | E9: =SUM(F6) ->  | H9: RD 6 | I9: 0 | J9: 0 | K9: =IF(COUNT(Runde6!H7:J7)=0,"",SUM(Runde6!H7:J7)) ->  | L9: =SUM(M6) -> 
A10: RD 7 | B10: 0 | C10: 0 | D10: =IF(COUNT(Runde6!B8:D8)=0,"",SUM(Runde6!B8:D8)) ->  | H10: RD 7 | I10: 0 | J10: 0 | K10: =IF(COUNT(Runde6!H8:J8)=0,"",SUM(Runde6!H8:J8)) -> 
A11: RD 8 | B11: 0 | C11: 0 | E11: Nicht Gut | H11: RD 8 | I11: 0 | J11: 0 | L11: Nicht Gut
A12: RD 9 | B12: 0 | C12: 0 | D12: =IF(COUNT(Runde6!B9:D9)=0,"",SUM(Runde6!B9:D9)) ->  | H12: RD 9 | I12: 0 | J12: 0 | K12: =IF(COUNT(Runde6!H9:J9)=0,"",SUM(Runde6!H9:J9)) -> 
A13: RD 10 | B13: 0 | C13: 0 | E13: Gut | H13: RD 10 | I13: 0 | J13: 0 | L13: Gut
A14: RD 11 | B14: 0 | C14: 0 | H14: RD 11 | I14: 0 | J14: 0
A15: RD 12 | B15: 0 | C15: 0 | D15: =IF(COUNT(Runde6!B10:D10)=0,"",SUM(Runde6!B10:D10)) ->  | H15: RD 12 | I15: 0 | J15: 0 | K15: =IF(COUNT(Runde6!H10:J10)=0,"",SUM(Runde6!H10:J10)) -> 
A16: RD 13 | B16: 0 | C16: 0 | D16: =IF(COUNT(Runde6!B11:D11)=0,"",SUM(Runde6!B11:D11)) ->  | H16: RD 13 | I16: 0 | J16: 0 | K16: =IF(COUNT(Runde6!H11:J11)=0,"",SUM(Runde6!H11:J11)) -> 
A17: RD 14 | B17: 0 | C17: 0 | D17: =IF(COUNT(Runde6!B12:D12)=0,"",SUM(Runde6!B12:D12)) ->  | E17: Sehr Gut | H17: RD 14 | I17: 0 | J17: 0 | K17: =IF(COUNT(Runde6!H12:J12)=0,"",SUM(Runde6!H12:J12)) ->  | L17: Sehr Gut
A18: RD 15 | B18: 0 | C18: 0 | H18: RD 15 | I18: 0 | J18: 0
A19: RD 16 | B19: 0 | C19: 0 | H19: RD 16 | I19: 0 | J19: 0
A20: RD 17 | B20: 0 | C20: 0 | H20: RD 17 | I20: 0 | J20: 0
A21: RD 18 | B21: 0 | C21: 0 | D21: =IF(COUNT(Runde6!B13:D13)=0,"",SUM(Runde6!B13:D13)) ->  | H21: RD 18 | I21: 0 | J21: 0 | K21: =IF(COUNT(Runde6!H13:J13)=0,"",SUM(Runde6!H13:J13)) -> 
A22: RD 19 | B22: 0 | C22: 0 | D22: =IF(COUNT(Runde6!B14:D14)=0,"",SUM(Runde6!B14:D14)) ->  | H22: RD 19 | I22: 0 | J22: 0 | K22: =IF(COUNT(Runde6!H14:J14)=0,"",SUM(Runde6!H14:J14)) -> 
A23: RD 20 | B23: 0 | C23: 0 | D23: =IF(COUNT(Runde6!B15:D15)=0,"",SUM(Runde6!B15:D15)) ->  | H23: RD 20 | I23: 0 | J23: 0 | K23: =IF(COUNT(Runde6!H15:J15)=0,"",SUM(Runde6!H15:J15)) -> 
A24: RD 21 | B24: 0 | C24: 0 | D24: =IF(COUNT(Runde6!B16:D16)=0,"",SUM(Runde6!B16:D16)) ->  | H24: RD 21 | I24: 0 | J24: 0 | K24: =IF(COUNT(Runde6!H16:J16)=0,"",SUM(Runde6!H16:J16)) -> 
A25: RD 22 | B25: 0 | C25: 0 | H25: RD 22 | I25: 0 | J25: 0
A26: RD 23 | B26: 0 | C26: 0 | D26: =IF(COUNT(Runde6!B17:D17)=0,"",SUM(Runde6!B17:D17)) ->  | H26: RD 23 | I26: 0 | J26: 0 | K26: =IF(COUNT(Runde6!H17:J17)=0,"",SUM(Runde6!H17:J17)) -> 
A27: RD 24 | B27: 0 | C27: 0 | D27: =IF(COUNT(Runde6!B18:D18)=0,"",SUM(Runde6!B18:D18)) ->  | H27: RD 24 | I27: 0 | J27: 0 | K27: =IF(COUNT(Runde6!H18:J18)=0,"",SUM(Runde6!H18:J18)) -> 
A28: RD 25 | B28: 0 | C28: 0 | D28: =IF(COUNT(Runde6!B19:D19)=0,"",SUM(Runde6!B19:D19)) ->  | H28: RD 25 | I28: 0 | J28: 0 | K28: =IF(COUNT(Runde6!H19:J19)=0,"",SUM(Runde6!H19:J19)) -> 
A29: RD 26 | B29: 0 | C29: 0 | H29: RD 26 | I29: 0 | J29: 0
A30: RD 27 | B30: 0 | C30: 0 | H30: RD 27 | I30: 0 | J30: 0
A31: RD 28 | B31: 0 | C31: 0 | H31: RD 28 | I31: 0 | J31: 0
A32: RD 29 | B32: 0 | C32: 0 | D32: =IF(COUNT(Runde6!B20:D20)=0,"",SUM(Runde6!B20:D20)) ->  | E32: =IF(E4=0,"Sieg","") ->  | H32: RD 29 | I32: 0 | J32: 0 | K32: =IF(COUNT(Runde6!H20:J20)=0,"",SUM(Runde6!H20:J20)) ->  | L32: =IF(L4=0,"Sieg","") -> 
A33: RD 30 | B33: 0 | C33: 0 | D33: =IF(COUNT(Runde6!B21:D21)=0,"",SUM(Runde6!B21:D21)) ->  | H33: RD 30 | I33: 0 | J33: 0 | K33: =IF(COUNT(Runde6!H21:J21)=0,"",SUM(Runde6!H21:J21)) -> 
B34: =SUM(B4:B33) -> 0 | C34: =SUM(C4:C33) -> 0 | D34: =SUM(D4:D33) -> 0 | E34: =SUM(D4:D32) -> 0 | I34: =SUM(I4:I33) -> 0 | J34: =SUM(J4:J33) -> 0 | K34: =SUM(K4:K33) -> 0 | L34: =SUM(K4:K32) -> 0
E35: =IF(E3 > L3, D1, IF(D2 > L3, K1, "Unentschieden")) -> 0

Sheet Rd. 7
F1: Sp. 1 | M1: Sp. 2
D2: Punkte | E2: 501 | F2: Start | K2: Punkte | L2: 501 | M2: Start
D3: Geworfen | E3: =SUM(D34) -> 0 | F3: Punkte | K3: Geworfen | L3: =SUM(K34) -> 0 | M3: Punkte
A4: RD 1 | B4: =COUNT(D4)*1 -> 0 | C4: =COUNT(D4)*3 -> 0 | D4: =IF(COUNT(Runde7!B2:D2)=0,"",SUM(Runde7!B2:D2)) ->  | E4: =SUM(E2-E3) -> 501 | F4: Rest | H4: RD 1 | I4: =COUNT(K4)*1 -> 0 | J4: =COUNT(K4)*3 -> 0 | K4: =IF(COUNT(Runde7!H2:J2)=0,"",SUM(Runde7!H2:J2)) ->  | L4: =SUM(L2-L3) -> 501 | M4: Rest
A5: RD 2 | B5: 0 | C5: 0 | D5: =IF(COUNT(Runde7!B3:D3)=0,"",SUM(Runde7!B3:D3)) ->  | H5: RD 2 | I5: 0 | J5: 0 | K5: =IF(COUNT(Runde7!H3:J3)=0,"",SUM(Runde7!H3:J3)) ->  | O5: Eintragen
A6: RD 3 | B6: 0 | C6: 0 | D6: =IF(COUNT(Runde7!B4:D4)=0,"",SUM(Runde7!B4:D4)) ->  | E6: ø pro Spiel | F6: =SUM(E3)/B34 ->  | H6: RD 3 | I6: 0 | J6: 0 | K6: =IF(COUNT(Runde7!H4:J4)=0,"",SUM(Runde7!H4:J4)) ->  | L6: ø pro Spiel | M6: =SUM(L3)/I34 -> 
A7: RD 4 | B7: 0 | C7: 0 | D7: =IF(COUNT(Runde7!B5:D5)=0,"",SUM(Runde7!B5:D5)) ->  | E7: ø pro Pfeil | F7: =SUM(E3)/C34 ->  | H7: RD 4 | I7: 0 | J7: 0 | K7: =IF(COUNT(Runde7!H5:J5)=0,"",SUM(Runde7!H5:J5)) ->  | L7: ø pro Pfeil | M7: =SUM(L3)/J34 -> 
A8: RD 5 | B8: 0 | C8: 0 | D8: =IF(COUNT(Runde7!B6:D6)=0,"",SUM(Runde7!B6:D6)) ->  | E8: Average | H8: RD 5 | I8: 0 | J8: 0 | K8: =IF(COUNT(Runde7!H6:J6)=0,"",SUM(Runde7!H6:J6)) ->  | L8: Average
A9: RD 6 | B9: 0 | C9: 0 | D9: =IF(COUNT(Runde7!B7:D7)=0,"",SUM(Runde7!B7:D7)) ->  | E9: =SUM(F6) ->  | H9: RD 6 | I9: 0 | J9: 0 | K9: =IF(COUNT(Runde7!H7:J7)=0,"",SUM(Runde7!H7:J7)) ->  | L9: =SUM(M6) -> 
A10: RD 7 | B10: 0 | C10: 0 | D10: =IF(COUNT(Runde7!B8:D8)=0,"",SUM(Runde7!B8:D8)) ->  | H10: RD 7 | I10: 0 | J10: 0 | K10: =IF(COUNT(Runde7!H8:J8)=0,"",SUM(Runde7!H8:J8)) -> 
A11: RD 8 | B11: 0 | C11: 0 | E11: Nicht Gut | H11: RD 8 | I11: 0 | J11: 0 | L11: Nicht Gut
A12: RD 9 | B12: 0 | C12: 0 | D12: =IF(COUNT(Runde7!B9:D9)=0,"",SUM(Runde7!B9:D9)) ->  | H12: RD 9 | I12: 0 | J12: 0 | K12: =IF(COUNT(Runde7!H9:J9)=0,"",SUM(Runde7!H9:J9)) -> 
A13: RD 10 | B13: 0 | C13: 0 | E13: Gut | H13: RD 10 | I13: 0 | J13: 0 | L13: Gut
A14: RD 11 | B14: 0 | C14: 0 | H14: RD 11 | I14: 0 | J14: 0
A15: RD 12 | B15: 0 | C15: 0 | D15: =IF(COUNT(Runde7!B10:D10)=0,"",SUM(Runde7!B10:D10)) ->  | H15: RD 12 | I15: 0 | J15: 0 | K15: =IF(COUNT(Runde7!H10:J10)=0,"",SUM(Runde7!H10:J10)) -> 
A16: RD 13 | B16: 0 | C16: 0 | D16: =IF(COUNT(Runde7!B11:D11)=0,"",SUM(Runde7!B11:D11)) ->  | H16: RD 13 | I16: 0 | J16: 0 | K16: =IF(COUNT(Runde7!H11:J11)=0,"",SUM(Runde7!H11:J11)) -> 
A17: RD 14 | B17: 0 | C17: 0 | D17: =IF(COUNT(Runde7!B12:D12)=0,"",SUM(Runde7!B12:D12)) ->  | E17: Sehr Gut | H17: RD 14 | I17: 0 | J17: 0 | K17: =IF(COUNT(Runde7!H12:J12)=0,"",SUM(Runde7!H12:J12)) ->  | L17: Sehr Gut
A18: RD 15 | B18: 0 | C18: 0 | H18: RD 15 | I18: 0 | J18: 0
A19: RD 16 | B19: 0 | C19: 0 | H19: RD 16 | I19: 0 | J19: 0
A20: RD 17 | B20: 0 | C20: 0 | H20: RD 17 | I20: 0 | J20: 0
A21: RD 18 | B21: 0 | C21: 0 | D21: =IF(COUNT(Runde7!B13:D13)=0,"",SUM(Runde7!B13:D13)) ->  | H21: RD 18 | I21: 0 | J21: 0 | K21: =IF(COUNT(Runde7!H13:J13)=0,"",SUM(Runde7!H13:J13)) -> 
A22: RD 19 | B22: 0 | C22: 0 | D22: =IF(COUNT(Runde7!B14:D14)=0,"",SUM(Runde7!B14:D14)) ->  | H22: RD 19 | I22: 0 | J22: 0 | K22: =IF(COUNT(Runde7!H14:J14)=0,"",SUM(Runde7!H14:J14)) -> 
A23: RD 20 | B23: 0 | C23: 0 | D23: =IF(COUNT(Runde7!B15:D15)=0,"",SUM(Runde7!B15:D15)) ->  | H23: RD 20 | I23: 0 | J23: 0 | K23: =IF(COUNT(Runde7!H15:J15)=0,"",SUM(Runde7!H15:J15)) -> 
A24: RD 21 | B24: 0 | C24: 0 | D24: =IF(COUNT(Runde7!B16:D16)=0,"",SUM(Runde7!B16:D16)) ->  | H24: RD 21 | I24: 0 | J24: 0 | K24: =IF(COUNT(Runde7!H16:J16)=0,"",SUM(Runde7!H16:J16)) -> 
A25: RD 22 | B25: 0 | C25: 0 | H25: RD 22 | I25: 0 | J25: 0
A26: RD 23 | B26: 0 | C26: 0 | D26: =IF(COUNT(Runde7!B17:D17)=0,"",SUM(Runde7!B17:D17)) ->  | H26: RD 23 | I26: 0 | J26: 0 | K26: =IF(COUNT(Runde7!H17:J17)=0,"",SUM(Runde7!H17:J17)) -> 
A27: RD 24 | B27: 0 | C27: 0 | D27: =IF(COUNT(Runde7!B18:D18)=0,"",SUM(Runde7!B18:D18)) ->  | H27: RD 24 | I27: 0 | J27: 0 | K27: =IF(COUNT(Runde7!H18:J18)=0,"",SUM(Runde7!H18:J18)) -> 
A28: RD 25 | B28: 0 | C28: 0 | D28: =IF(COUNT(Runde7!B19:D19)=0,"",SUM(Runde7!B19:D19)) ->  | H28: RD 25 | I28: 0 | J28: 0 | K28: =IF(COUNT(Runde7!H19:J19)=0,"",SUM(Runde7!H19:J19)) -> 
A29: RD 26 | B29: 0 | C29: 0 | H29: RD 26 | I29: 0 | J29: 0
A30: RD 27 | B30: 0 | C30: 0 | H30: RD 27 | I30: 0 | J30: 0
A31: RD 28 | B31: 0 | C31: 0 | H31: RD 28 | I31: 0 | J31: 0
A32: RD 29 | B32: 0 | C32: 0 | D32: =IF(COUNT(Runde7!B20:D20)=0,"",SUM(Runde7!B20:D20)) ->  | E32: =IF(E4=0,"Sieg","") ->  | H32: RD 29 | I32: 0 | J32: 0 | K32: =IF(COUNT(Runde7!H20:J20)=0,"",SUM(Runde7!H20:J20)) ->  | L32: =IF(L4=0,"Sieg","") -> 
A33: RD 30 | B33: 0 | C33: 0 | D33: =IF(COUNT(Runde7!B21:D21)=0,"",SUM(Runde7!B21:D21)) ->  | H33: RD 30 | I33: 0 | J33: 0 | K33: =IF(COUNT(Runde7!H21:J21)=0,"",SUM(Runde7!H21:J21)) -> 
B34: =SUM(B4:B33) -> 0 | C34: =SUM(C4:C33) -> 0 | D34: =SUM(D4:D33) -> 0 | E34: =SUM(D4:D32) -> 0 | I34: =SUM(I4:I33) -> 0 | J34: =SUM(J4:J33) -> 0 | K34: =SUM(K4:K33) -> 0 | L34: =SUM(K4:K32) -> 0
E35: =IF(E3 > L3, D1, IF(D2 > L3, K1, "Unentschieden")) -> 0

Sheet Rd. 8
F1: Sp. 1 | M1: Sp. 2
D2: Punkte | E2: 501 | F2: Start | K2: Punkte | L2: 501 | M2: Start
D3: Geworfen | E3: =SUM(D34) -> 0 | F3: Punkte | K3: Geworfen | L3: =SUM(K34) -> 0 | M3: Punkte
A4: RD 1 | B4: =COUNT(D4)*1 -> 0 | C4: =COUNT(D4)*3 -> 0 | D4: =IF(COUNT(Runde8!B2:D2)=0,"",SUM(Runde8!B2:D2)) ->  | E4: =SUM(E2-E3) -> 501 | F4: Rest | H4: RD 1 | I4: =COUNT(K4)*1 -> 0 | J4: =COUNT(K4)*3 -> 0 | K4: =IF(COUNT(Runde8!H2:J2)=0,"",SUM(Runde8!H2:J2)) ->  | L4: =SUM(L2-L3) -> 501 | M4: Rest
A5: RD 2 | B5: 0 | C5: 0 | D5: =IF(COUNT(Runde8!B3:D3)=0,"",SUM(Runde8!B3:D3)) ->  | H5: RD 2 | I5: 0 | J5: 0 | K5: =IF(COUNT(Runde8!H3:J3)=0,"",SUM(Runde8!H3:J3)) ->  | O5: Eintragen
A6: RD 3 | B6: 0 | C6: 0 | D6: =IF(COUNT(Runde8!B4:D4)=0,"",SUM(Runde8!B4:D4)) ->  | E6: ø pro Spiel | F6: =SUM(E3)/B34 ->  | H6: RD 3 | I6: 0 | J6: 0 | K6: =IF(COUNT(Runde8!H4:J4)=0,"",SUM(Runde8!H4:J4)) ->  | L6: ø pro Spiel | M6: =SUM(L3)/I34 -> 
A7: RD 4 | B7: 0 | C7: 0 | D7: =IF(COUNT(Runde8!B5:D5)=0,"",SUM(Runde8!B5:D5)) ->  | E7: ø pro Pfeil | F7: =SUM(E3)/C34 ->  | H7: RD 4 | I7: 0 | J7: 0 | K7: =IF(COUNT(Runde8!H5:J5)=0,"",SUM(Runde8!H5:J5)) ->  | L7: ø pro Pfeil | M7: =SUM(L3)/J34 -> 
A8: RD 5 | B8: 0 | C8: 0 | D8: =IF(COUNT(Runde8!B6:D6)=0,"",SUM(Runde8!B6:D6)) ->  | E8: Average | H8: RD 5 | I8: 0 | J8: 0 | K8: =IF(COUNT(Runde8!H6:J6)=0,"",SUM(Runde8!H6:J6)) ->  | L8: Average
A9: RD 6 | B9: 0 | C9: 0 | D9: =IF(COUNT(Runde8!B7:D7)=0,"",SUM(Runde8!B7:D7)) ->  | E9: =SUM(F6) ->  | H9: RD 6 | I9: 0 | J9: 0 | K9: =IF(COUNT(Runde8!H7:J7)=0,"",SUM(Runde8!H7:J7)) ->  | L9: =SUM(M6) -> 
A10: RD 7 | B10: 0 | C10: 0 | D10: =IF(COUNT(Runde8!B8:D8)=0,"",SUM(Runde8!B8:D8)) ->  | H10: RD 7 | I10: 0 | J10: 0 | K10: =IF(COUNT(Runde8!H8:J8)=0,"",SUM(Runde8!H8:J8)) -> 
A11: RD 8 | B11: 0 | C11: 0 | E11: Nicht Gut | H11: RD 8 | I11: 0 | J11: 0 | L11: Nicht Gut
A12: RD 9 | B12: 0 | C12: 0 | D12: =IF(COUNT(Runde8!B9:D9)=0,"",SUM(Runde8!B9:D9)) ->  | H12: RD 9 | I12: 0 | J12: 0 | K12: =IF(COUNT(Runde8!H9:J9)=0,"",SUM(Runde8!H9:J9)) -> 
A13: RD 10 | B13: 0 | C13: 0 | E13: Gut | H13: RD 10 | I13: 0 | J13: 0 | L13: Gut
A14: RD 11 | B14: 0 | C14: 0 | H14: RD 11 | I14: 0 | J14: 0
A15: RD 12 | B15: 0 | C15: 0 | D15: =IF(COUNT(Runde8!B10:D10)=0,"",SUM(Runde8!B10:D10)) ->  | H15: RD 12 | I15: 0 | J15: 0 | K15: =IF(COUNT(Runde8!H10:J10)=0,"",SUM(Runde8!H10:J10)) -> 
A16: RD 13 | B16: 0 | C16: 0 | D16: =IF(COUNT(Runde8!B11:D11)=0,"",SUM(Runde8!B11:D11)) ->  | H16: RD 13 | I16: 0 | J16: 0 | K16: =IF(COUNT(Runde8!H11:J11)=0,"",SUM(Runde8!H11:J11)) -> 
A17: RD 14 | B17: 0 | C17: 0 | D17: =IF(COUNT(Runde8!B12:D12)=0,"",SUM(Runde8!B12:D12)) ->  | E17: Sehr Gut | H17: RD 14 | I17: 0 | J17: 0 | K17: =IF(COUNT(Runde8!H12:J12)=0,"",SUM(Runde8!H12:J12)) ->  | L17: Sehr Gut
A18: RD 15 | B18: 0 | C18: 0 | H18: RD 15 | I18: 0 | J18: 0
A19: RD 16 | B19: 0 | C19: 0 | H19: RD 16 | I19: 0 | J19: 0
A20: RD 17 | B20: 0 | C20: 0 | H20: RD 17 | I20: 0 | J20: 0
A21: RD 18 | B21: 0 | C21: 0 | D21: =IF(COUNT(Runde8!B13:D13)=0,"",SUM(Runde8!B13:D13)) ->  | H21: RD 18 | I21: 0 | J21: 0 | K21: =IF(COUNT(Runde8!H13:J13)=0,"",SUM(Runde8!H13:J13)) -> 
A22: RD 19 | B22: 0 | C22: 0 | D22: =IF(COUNT(Runde8!B14:D14)=0,"",SUM(Runde8!B14:D14)) ->  | H22: RD 19 | I22: 0 | J22: 0 | K22: =IF(COUNT(Runde8!H14:J14)=0,"",SUM(Runde8!H14:J14)) -> 
A23: RD 20 | B23: 0 | C23: 0 | D23: =IF(COUNT(Runde8!B15:D15)=0,"",SUM(Runde8!B15:D15)) ->  | H23: RD 20 | I23: 0 | J23: 0 | K23: =IF(COUNT(Runde8!H15:J15)=0,"",SUM(Runde8!H15:J15)) -> 
A24: RD 21 | B24: 0 | C24: 0 | D24: =IF(COUNT(Runde8!B16:D16)=0,"",SUM(Runde8!B16:D16)) ->  | H24: RD 21 | I24: 0 | J24: 0 | K24: =IF(COUNT(Runde8!H16:J16)=0,"",SUM(Runde8!H16:J16)) -> 
A25: RD 22 | B25: 0 | C25: 0 | H25: RD 22 | I25: 0 | J25: 0
A26: RD 23 | B26: 0 | C26: 0 | D26: =IF(COUNT(Runde8!B17:D17)=0,"",SUM(Runde8!B17:D17)) ->  | H26: RD 23 | I26: 0 | J26: 0 | K26: =IF(COUNT(Runde8!H17:J17)=0,"",SUM(Runde8!H17:J17)) -> 
A27: RD 24 | B27: 0 | C27: 0 | D27: =IF(COUNT(Runde8!B18:D18)=0,"",SUM(Runde8!B18:D18)) ->  | H27: RD 24 | I27: 0 | J27: 0 | K27: =IF(COUNT(Runde8!H18:J18)=0,"",SUM(Runde8!H18:J18)) -> 
A28: RD 25 | B28: 0 | C28: 0 | D28: =IF(COUNT(Runde8!B19:D19)=0,"",SUM(Runde8!B19:D19)) ->  | H28: RD 25 | I28: 0 | J28: 0 | K28: =IF(COUNT(Runde8!H19:J19)=0,"",SUM(Runde8!H19:J19)) -> 
A29: RD 26 | B29: 0 | C29: 0 | H29: RD 26 | I29: 0 | J29: 0
A30: RD 27 | B30: 0 | C30: 0 | H30: RD 27 | I30: 0 | J30: 0
A31: RD 28 | B31: 0 | C31: 0 | H31: RD 28 | I31: 0 | J31: 0
A32: RD 29 | B32: 0 | C32: 0 | D32: =IF(COUNT(Runde8!B20:D20)=0,"",SUM(Runde8!B20:D20)) ->  | E32: =IF(E4=0,"Sieg","") ->  | H32: RD 29 | I32: 0 | J32: 0 | K32: =IF(COUNT(Runde8!H20:J20)=0,"",SUM(Runde8!H20:J20)) ->  | L32: =IF(L4=0,"Sieg","") -> 
A33: RD 30 | B33: 0 | C33: 0 | H33: RD 30 | I33: 0 | J33: 0 | K33: =IF(COUNT(Runde8!H21:J21)=0,"",SUM(Runde8!H21:J21)) -> 
B34: =SUM(B4:B33) -> 0 | C34: =SUM(C4:C33) -> 0 | D34: =SUM(D4:D33) -> 0 | E34: =SUM(D4:D32) -> 0 | I34: =SUM(I4:I33) -> 0 | J34: =SUM(J4:J33) -> 0 | K34: =SUM(K4:K33) -> 0 | L34: =SUM(K4:K32) -> 0
E35: =IF(E3 > L3, D1, IF(D2 > L3, K1, "Unentschieden")) -> 0

Sheet Rd. 9
F1: Sp. 1 | M1: Sp. 2
D2: Punkte | E2: 501 | F2: Start | K2: Punkte | L2: 501 | M2: Start
D3: Geworfen | E3: =SUM(D34) -> 0 | F3: Punkte | K3: Geworfen | L3: =SUM(K34) -> 0 | M3: Punkte
A4: RD 1 | B4: =COUNT(D4)*1 -> 0 | C4: =COUNT(D4)*3 -> 0 | D4: =IF(COUNT(Runde9!B2:D2)=0,"",SUM(Runde9!B2:D2)) ->  | E4: =SUM(E2-E3) -> 501 | F4: Rest | H4: RD 1 | I4: =COUNT(K4)*1 -> 0 | J4: =COUNT(K4)*3 -> 0 | K4: =IF(COUNT(Runde9!H2:J2)=0,"",SUM(Runde9!H2:J2)) ->  | L4: =SUM(L2-L3) -> 501 | M4: Rest
A5: RD 2 | B5: 0 | C5: 0 | D5: =IF(COUNT(Runde9!B3:D3)=0,"",SUM(Runde9!B3:D3)) ->  | H5: RD 2 | I5: 0 | J5: 0 | K5: =IF(COUNT(Runde9!H3:J3)=0,"",SUM(Runde9!H3:J3)) ->  | O5: Eintragen
A6: RD 3 | B6: 0 | C6: 0 | D6: =IF(COUNT(Runde9!B4:D4)=0,"",SUM(Runde9!B4:D4)) ->  | E6: ø pro Spiel | F6: =SUM(E3)/B34 ->  | H6: RD 3 | I6: 0 | J6: 0 | K6: =IF(COUNT(Runde9!H4:J4)=0,"",SUM(Runde9!H4:J4)) ->  | L6: ø pro Spiel | M6: =SUM(L3)/I34 -> 
A7: RD 4 | B7: 0 | C7: 0 | D7: =IF(COUNT(Runde9!B5:D5)=0,"",SUM(Runde9!B5:D5)) ->  | E7: ø pro Pfeil | F7: =SUM(E3)/C34 ->  | H7: RD 4 | I7: 0 | J7: 0 | K7: =IF(COUNT(Runde9!H5:J5)=0,"",SUM(Runde9!H5:J5)) ->  | L7: ø pro Pfeil | M7: =SUM(L3)/J34 -> 
A8: RD 5 | B8: 0 | C8: 0 | D8: =IF(COUNT(Runde9!B6:D6)=0,"",SUM(Runde9!B6:D6)) ->  | E8: Average | H8: RD 5 | I8: 0 | J8: 0 | K8: =IF(COUNT(Runde9!H6:J6)=0,"",SUM(Runde9!H6:J6)) ->  | L8: Average
A9: RD 6 | B9: 0 | C9: 0 | D9: =IF(COUNT(Runde9!B7:D7)=0,"",SUM(Runde9!B7:D7)) ->  | E9: =SUM(F6) ->  | H9: RD 6 | I9: 0 | J9: 0 | K9: =IF(COUNT(Runde9!H7:J7)=0,"",SUM(Runde9!H7:J7)) ->  | L9: =SUM(M6) -> 
A10: RD 7 | B10: 0 | C10: 0 | D10: =IF(COUNT(Runde9!B8:D8)=0,"",SUM(Runde9!B8:D8)) ->  | H10: RD 7 | I10: 0 | J10: 0 | K10: =IF(COUNT(Runde9!H8:J8)=0,"",SUM(Runde9!H8:J8)) -> 
A11: RD 8 | B11: 0 | C11: 0 | E11: Nicht Gut | H11: RD 8 | I11: 0 | J11: 0 | L11: Nicht Gut
A12: RD 9 | B12: 0 | C12: 0 | D12: =IF(COUNT(Runde9!B9:D9)=0,"",SUM(Runde9!B9:D9)) ->  | H12: RD 9 | I12: 0 | J12: 0 | K12: =IF(COUNT(Runde9!H9:J9)=0,"",SUM(Runde9!H9:J9)) -> 
A13: RD 10 | B13: 0 | C13: 0 | E13: Gut | H13: RD 10 | I13: 0 | J13: 0 | L13: Gut
A14: RD 11 | B14: 0 | C14: 0 | H14: RD 11 | I14: 0 | J14: 0
A15: RD 12 | B15: 0 | C15: 0 | D15: =IF(COUNT(Runde9!B10:D10)=0,"",SUM(Runde9!B10:D10)) ->  | H15: RD 12 | I15: 0 | J15: 0 | K15: =IF(COUNT(Runde9!H10:J10)=0,"",SUM(Runde9!H10:J10)) -> 
A16: RD 13 | B16: 0 | C16: 0 | D16: =IF(COUNT(Runde9!B11:D11)=0,"",SUM(Runde9!B11:D11)) ->  | H16: RD 13 | I16: 0 | J16: 0 | K16: =IF(COUNT(Runde9!H11:J11)=0,"",SUM(Runde9!H11:J11)) -> 
A17: RD 14 | B17: 0 | C17: 0 | D17: =IF(COUNT(Runde9!B12:D12)=0,"",SUM(Runde9!B12:D12)) ->  | E17: Sehr Gut | H17: RD 14 | I17: 0 | J17: 0 | K17: =IF(COUNT(Runde9!H12:J12)=0,"",SUM(Runde9!H12:J12)) ->  | L17: Sehr Gut
A18: RD 15 | B18: 0 | C18: 0 | H18: RD 15 | I18: 0 | J18: 0
A19: RD 16 | B19: 0 | C19: 0 | H19: RD 16 | I19: 0 | J19: 0
A20: RD 17 | B20: 0 | C20: 0 | H20: RD 17 | I20: 0 | J20: 0
A21: RD 18 | B21: 0 | C21: 0 | D21: =IF(COUNT(Runde9!B13:D13)=0,"",SUM(Runde9!B13:D13)) ->  | H21: RD 18 | I21: 0 | J21: 0 | K21: =IF(COUNT(Runde9!H13:J13)=0,"",SUM(Runde9!H13:J13)) -> 
A22: RD 19 | B22: 0 | C22: 0 | D22: =IF(COUNT(Runde9!B14:D14)=0,"",SUM(Runde9!B14:D14)) ->  | H22: RD 19 | I22: 0 | J22: 0 | K22: =IF(COUNT(Runde9!H14:J14)=0,"",SUM(Runde9!H14:J14)) -> 
A23: RD 20 | B23: 0 | C23: 0 | D23: =IF(COUNT(Runde9!B15:D15)=0,"",SUM(Runde9!B15:D15)) ->  | H23: RD 20 | I23: 0 | J23: 0 | K23: =IF(COUNT(Runde9!H15:J15)=0,"",SUM(Runde9!H15:J15)) -> 
A24: RD 21 | B24: 0 | C24: 0 | D24: =IF(COUNT(Runde9!B16:D16)=0,"",SUM(Runde9!B16:D16)) ->  | H24: RD 21 | I24: 0 | J24: 0 | K24: =IF(COUNT(Runde9!H16:J16)=0,"",SUM(Runde9!H16:J16)) -> 
A25: RD 22 | B25: 0 | C25: 0 | H25: RD 22 | I25: 0 | J25: 0
A26: RD 23 | B26: 0 | C26: 0 | D26: =IF(COUNT(Runde9!B17:D17)=0,"",SUM(Runde9!B17:D17)) ->  | H26: RD 23 | I26: 0 | J26: 0 | K26: =IF(COUNT(Runde9!H17:J17)=0,"",SUM(Runde9!H17:J17)) -> 
A27: RD 24 | B27: 0 | C27: 0 | D27: =IF(COUNT(Runde9!B18:D18)=0,"",SUM(Runde9!B18:D18)) ->  | H27: RD 24 | I27: 0 | J27: 0 | K27: =IF(COUNT(Runde9!H18:J18)=0,"",SUM(Runde9!H18:J18)) -> 
A28: RD 25 | B28: 0 | C28: 0 | D28: =IF(COUNT(Runde9!B19:D19)=0,"",SUM(Runde9!B19:D19)) ->  | H28: RD 25 | I28: 0 | J28: 0 | K28: =IF(COUNT(Runde9!H19:J19)=0,"",SUM(Runde9!H19:J19)) -> 
A29: RD 26 | B29: 0 | C29: 0 | H29: RD 26 | I29: 0 | J29: 0
A30: RD 27 | B30: 0 | C30: 0 | H30: RD 27 | I30: 0 | J30: 0
A31: RD 28 | B31: 0 | C31: 0 | H31: RD 28 | I31: 0 | J31: 0
A32: RD 29 | B32: 0 | C32: 0 | D32: =IF(COUNT(Runde9!B20:D20)=0,"",SUM(Runde9!B20:D20)) ->  | E32: =IF(E4=0,"Sieg","") ->  | H32: RD 29 | I32: 0 | J32: 0 | K32: =IF(COUNT(Runde9!H20:J20)=0,"",SUM(Runde9!H20:J20)) ->  | L32: =IF(L4=0,"Sieg","") -> 
A33: RD 30 | B33: 0 | C33: 0 | D33: =IF(COUNT(Runde9!B21:D21)=0,"",SUM(Runde9!B21:D21)) ->  | H33: RD 30 | I33: 0 | J33: 0 | K33: =IF(COUNT(Runde9!H21:J21)=0,"",SUM(Runde9!H21:J21)) -> 
B34: =SUM(B4:B33) -> 0 | C34: =SUM(C4:C33) -> 0 | D34: =SUM(D4:D33) -> 0 | E34: =SUM(D4:D32) -> 0 | I34: =SUM(I4:I33) -> 0 | J34: =SUM(J4:J33) -> 0 | K34: =SUM(K4:K33) -> 0 | L34: =SUM(K4:K32) -> 0
E35: =IF(E3 > L3, D1, IF(D2 > L3, K1, "Unentschieden")) -> 0

Sheet Rd. 10
F1: Sp. 1 | M1: Sp. 2
D2: Punkte | E2: 501 | F2: Start | K2: Punkte | L2: 501 | M2: Start
D3: Geworfen | E3: =SUM(D34) -> 82 | F3: Punkte | K3: Geworfen | L3: =SUM(K34) -> 68 | M3: Punkte
A4: RD 1 | B4: =COUNT(D4)*1 -> 1 | C4: =COUNT(D4)*3 -> 3 | D4: =IF(COUNT(Runde10!B2:D2)=0,"",SUM(Runde10!B2:D2)) -> 82 | E4: =SUM(E2-E3) -> 419 | F4: Rest | H4: RD 1 | I4: =COUNT(K4)*1 -> 1 | J4: =COUNT(K4)*3 -> 3 | K4: =IF(COUNT(Runde10!H2:J2)=0,"",SUM(Runde10!H2:J2)) -> 68 | L4: =SUM(L2-L3) -> 433 | M4: Rest
A5: RD 2 | B5: 0 | C5: 0 | D5: =IF(COUNT(Runde10!B3:D3)=0,"",SUM(Runde10!B3:D3)) ->  | H5: RD 2 | I5: 0 | J5: 0 | K5: =IF(COUNT(Runde10!H3:J3)=0,"",SUM(Runde10!H3:J3)) ->  | O5: Eintragen
A6: RD 3 | B6: 0 | C6: 0 | D6: =IF(COUNT(Runde10!B4:D4)=0,"",SUM(Runde10!B4:D4)) ->  | E6: ø pro Spiel | F6: =SUM(E3)/B34 -> 82 | H6: RD 3 | I6: 0 | J6: 0 | K6: =IF(COUNT(Runde10!H4:J4)=0,"",SUM(Runde10!H4:J4)) ->  | L6: ø pro Spiel | M6: =SUM(L3)/I34 -> 68
A7: RD 4 | B7: 0 | C7: 0 | D7: =IF(COUNT(Runde10!B5:D5)=0,"",SUM(Runde10!B5:D5)) ->  | E7: ø pro Pfeil | F7: =SUM(E3)/C34 -> 27.33333333 | H7: RD 4 | I7: 0 | J7: 0 | K7: =IF(COUNT(Runde10!H5:J5)=0,"",SUM(Runde10!H5:J5)) ->  | L7: ø pro Pfeil | M7: =SUM(L3)/J34 -> 22.66666667
A8: RD 5 | B8: 0 | C8: 0 | D8: =IF(COUNT(Runde10!B6:D6)=0,"",SUM(Runde10!B6:D6)) ->  | E8: Average | H8: RD 5 | I8: 0 | J8: 0 | K8: =IF(COUNT(Runde10!H6:J6)=0,"",SUM(Runde10!H6:J6)) ->  | L8: Average
A9: RD 6 | B9: 0 | C9: 0 | D9: =IF(COUNT(Runde10!B7:D7)=0,"",SUM(Runde10!B7:D7)) ->  | E9: =SUM(F6) -> 82 | H9: RD 6 | I9: 0 | J9: 0 | K9: =IF(COUNT(Runde10!H7:J7)=0,"",SUM(Runde10!H7:J7)) ->  | L9: =SUM(M6) -> 68
A10: RD 7 | B10: 0 | C10: 0 | D10: =IF(COUNT(Runde10!B8:D8)=0,"",SUM(Runde10!B8:D8)) ->  | H10: RD 7 | I10: 0 | J10: 0 | K10: =IF(COUNT(Runde10!H8:J8)=0,"",SUM(Runde10!H8:J8)) -> 
A11: RD 8 | B11: 0 | C11: 0 | E11: Nicht Gut | H11: RD 8 | I11: 0 | J11: 0 | L11: Nicht Gut
A12: RD 9 | B12: 0 | C12: 0 | D12: =IF(COUNT(Runde10!B9:D9)=0,"",SUM(Runde10!B9:D9)) ->  | H12: RD 9 | I12: 0 | J12: 0 | K12: =IF(COUNT(Runde10!H9:J9)=0,"",SUM(Runde10!H9:J9)) -> 
A13: RD 10 | B13: 0 | C13: 0 | E13: Gut | H13: RD 10 | I13: 0 | J13: 0 | L13: Gut
A14: RD 11 | B14: 0 | C14: 0 | H14: RD 11 | I14: 0 | J14: 0
A15: RD 12 | B15: 0 | C15: 0 | D15: =IF(COUNT(Runde10!B10:D10)=0,"",SUM(Runde10!B10:D10)) ->  | H15: RD 12 | I15: 0 | J15: 0 | K15: =IF(COUNT(Runde10!H10:J10)=0,"",SUM(Runde10!H10:J10)) -> 
A16: RD 13 | B16: 0 | C16: 0 | D16: =IF(COUNT(Runde10!B11:D11)=0,"",SUM(Runde10!B11:D11)) ->  | H16: RD 13 | I16: 0 | J16: 0 | K16: =IF(COUNT(Runde10!H11:J11)=0,"",SUM(Runde10!H11:J11)) -> 
A17: RD 14 | B17: 0 | C17: 0 | D17: =IF(COUNT(Runde10!B12:D12)=0,"",SUM(Runde10!B12:D12)) ->  | E17: Sehr Gut | H17: RD 14 | I17: 0 | J17: 0 | K17: =IF(COUNT(Runde10!H12:J12)=0,"",SUM(Runde10!H12:J12)) ->  | L17: Sehr Gut
A18: RD 15 | B18: 0 | C18: 0 | H18: RD 15 | I18: 0 | J18: 0
A19: RD 16 | B19: 0 | C19: 0 | H19: RD 16 | I19: 0 | J19: 0
A20: RD 17 | B20: 0 | C20: 0 | H20: RD 17 | I20: 0 | J20: 0
A21: RD 18 | B21: 0 | C21: 0 | D21: =IF(COUNT(Runde10!B13:D13)=0,"",SUM(Runde10!B13:D13)) ->  | H21: RD 18 | I21: 0 | J21: 0 | K21: =IF(COUNT(Runde10!H13:J13)=0,"",SUM(Runde10!H13:J13)) -> 
A22: RD 19 | B22: 0 | C22: 0 | D22: =IF(COUNT(Runde10!B14:D14)=0,"",SUM(Runde10!B14:D14)) ->  | H22: RD 19 | I22: 0 | J22: 0 | K22: =IF(COUNT(Runde10!H14:J14)=0,"",SUM(Runde10!H14:J14)) -> 
A23: RD 20 | B23: 0 | C23: 0 | D23: =IF(COUNT(Runde10!B15:D15)=0,"",SUM(Runde10!B15:D15)) ->  | H23: RD 20 | I23: 0 | J23: 0 | K23: =IF(COUNT(Runde10!H15:J15)=0,"",SUM(Runde10!H15:J15)) -> 
A24: RD 21 | B24: 0 | C24: 0 | D24: =IF(COUNT(Runde10!B16:D16)=0,"",SUM(Runde10!B16:D16)) ->  | H24: RD 21 | I24: 0 | J24: 0 | K24: =IF(COUNT(Runde10!H16:J16)=0,"",SUM(Runde10!H16:J16)) -> 
A25: RD 22 | B25: 0 | C25: 0 | H25: RD 22 | I25: 0 | J25: 0
A26: RD 23 | B26: 0 | C26: 0 | D26: =IF(COUNT(Runde10!B17:D17)=0,"",SUM(Runde10!B17:D17)) ->  | H26: RD 23 | I26: 0 | J26: 0 | K26: =IF(COUNT(Runde10!H17:J17)=0,"",SUM(Runde10!H17:J17)) -> 
A27: RD 24 | B27: 0 | C27: 0 | D27: =IF(COUNT(Runde10!B18:D18)=0,"",SUM(Runde10!B18:D18)) ->  | H27: RD 24 | I27: 0 | J27: 0 | K27: =IF(COUNT(Runde10!H18:J18)=0,"",SUM(Runde10!H18:J18)) -> 
A28: RD 25 | B28: 0 | C28: 0 | D28: =IF(COUNT(Runde10!B19:D19)=0,"",SUM(Runde10!B19:D19)) ->  | H28: RD 25 | I28: 0 | J28: 0 | K28: =IF(COUNT(Runde10!H19:J19)=0,"",SUM(Runde10!H19:J19)) -> 
A29: RD 26 | B29: 0 | C29: 0 | H29: RD 26 | I29: 0 | J29: 0
A30: RD 27 | B30: 0 | C30: 0 | H30: RD 27 | I30: 0 | J30: 0
A31: RD 28 | B31: 0 | C31: 0 | H31: RD 28 | I31: 0 | J31: 0
A32: RD 29 | B32: 0 | C32: 0 | D32: =IF(COUNT(Runde10!B20:D20)=0,"",SUM(Runde10!B20:D20)) ->  | E32: =IF(E4=0,"Sieg","") ->  | H32: RD 29 | I32: 0 | J32: 0 | K32: =IF(COUNT(Runde10!H20:J20)=0,"",SUM(Runde10!H20:J20)) ->  | L32: =IF(L4=0,"Sieg","") -> 
A33: RD 30 | B33: 0 | C33: 0 | D33: =IF(COUNT(Runde10!B21:D21)=0,"",SUM(Runde10!B21:D21)) ->  | H33: RD 30 | I33: 0 | J33: 0 | K33: =IF(COUNT(Runde10!H21:J21)=0,"",SUM(Runde10!H21:J21)) -> 
B34: =SUM(B4:B33) -> 1 | C34: =SUM(C4:C33) -> 3 | D34: =SUM(D4:D33) -> 82 | E34: =SUM(D4:D32) -> 82 | I34: =SUM(I4:I33) -> 1 | J34: =SUM(J4:J33) -> 3 | K34: =SUM(K4:K33) -> 68 | L34: =SUM(K4:K32) -> 68
E35: =IF(E3 > L3, D1, IF(D2 > L3, K1, "Unentschieden")) -> 0

Sheet Rd. 11
F1: Sp. 1 | M1: Sp. 2
D2: Punkte | E2: 501 | F2: Start | K2: Punkte | L2: 501 | M2: Start
D3: Geworfen | E3: =SUM(D24) -> 0 | F3: Punkte | K3: Geworfen | L3: =SUM(K24) -> 0 | M3: Punkte | O3: Ergebnisse leeren
A4: RD 1 | B4: =COUNT(D4)*1 -> 0 | C4: =COUNT(D4)*3 -> 0 | E4: =SUM(E2-E3) -> 501 | F4: Rest | H4: RD 1 | I4: =COUNT(K4)*1 -> 0 | J4: =COUNT(K4)*3 -> 0 | L4: =SUM(L2-L3) -> 501 | M4: Rest
A5: RD 2 | B5: 0 | C5: 0 | H5: RD 2 | I5: 0 | J5: 0
A6: RD 3 | B6: 0 | C6: 0 | E6: ø pro Spiel | F6: =SUM(E3)/B24 ->  | H6: RD 3 | I6: 0 | J6: 0 | L6: ø pro Spiel | M6: =SUM(L3)/I24 -> 
A7: RD 4 | B7: 0 | C7: 0 | E7: ø pro Pfeil | F7: =SUM(E3)/C24 ->  | H7: RD 4 | I7: 0 | J7: 0 | L7: ø pro Pfeil | M7: =SUM(L3)/J24 -> 
A8: RD 5 | B8: 0 | C8: 0 | E8: Average | H8: RD 5 | I8: 0 | J8: 0 | L8: Average
A9: RD 6 | B9: 0 | C9: 0 | E9: =SUM(F6) ->  | H9: RD 6 | I9: 0 | J9: 0 | L9: =SUM(M6) -> 
A10: RD 7 | B10: 0 | C10: 0 | H10: RD 7 | I10: 0 | J10: 0
A11: RD 8 | B11: 0 | C11: 0 | E11: Nicht Gut | H11: RD 8 | I11: 0 | J11: 0 | L11: Nicht Gut
A12: RD 9 | B12: 0 | C12: 0 | E12: Gut | H12: RD 9 | I12: 0 | J12: 0 | L12: Gut
A13: RD 10 | B13: 0 | C13: 0 | H13: RD 10 | I13: 0 | J13: 0
A14: RD 11 | B14: 0 | C14: 0 | E14: Sehr Gut | H14: RD 11 | I14: 0 | J14: 0 | L14: Sehr Gut
A15: RD 12 | B15: 0 | C15: 0 | H15: RD 12 | I15: 0 | J15: 0
A16: RD 13 | B16: 0 | C16: 0 | H16: RD 13 | I16: 0 | J16: 0
A17: RD 14 | B17: 0 | C17: 0 | H17: RD 14 | I17: 0 | J17: 0
A18: RD 15 | B18: 0 | C18: 0 | H18: RD 15 | I18: 0 | J18: 0
A19: RD 16 | B19: 0 | C19: 0 | H19: RD 16 | I19: 0 | J19: 0
A20: RD 17 | B20: 0 | C20: 0 | H20: RD 17 | I20: 0 | J20: 0
A21: RD 18 | B21: 0 | C21: 0 | H21: RD 18 | I21: 0 | J21: 0
A22: RD 19 | B22: 0 | C22: 0 | E22: =IF(E4=0,"Sieg","") ->  | H22: RD 19 | I22: 0 | J22: 0 | L22: =IF(L4=0,"Sieg","") -> 
A23: RD 20 | B23: 0 | C23: 0 | H23: RD 20 | I23: 0 | J23: 0
B24: =SUM(B4:B23) -> 0 | C24: =SUM(C4:C23) -> 0 | D24: =SUM(D4:D23) -> 0 | E24: =SUM(D4:D22) -> 0 | I24: =SUM(I4:I23) -> 0 | J24: =SUM(J4:J23) -> 0 | K24: =SUM(K4:K23) -> 0 | L24: =SUM(K4:K22) -> 0
E25: =IF(E3 > L3, D1, IF(D2 > L3, K1, "Unentschieden")) -> 0

Sheet Rd. 12
F1: Sp. 1 | M1: Sp. 2
D2: Punkte | E2: 501 | F2: Start | K2: Punkte | L2: 501 | M2: Start
D3: Geworfen | E3: =SUM(D24) -> 0 | F3: Punkte | K3: Geworfen | L3: =SUM(K24) -> 0 | M3: Punkte | O3: Ergebnisse leeren
A4: RD 1 | B4: =COUNT(D4)*1 -> 0 | C4: =COUNT(D4)*3 -> 0 | E4: =SUM(E2-E3) -> 501 | F4: Rest | H4: RD 1 | I4: =COUNT(K4)*1 -> 0 | J4: =COUNT(K4)*3 -> 0 | L4: =SUM(L2-L3) -> 501 | M4: Rest
A5: RD 2 | B5: 0 | C5: 0 | H5: RD 2 | I5: 0 | J5: 0
A6: RD 3 | B6: 0 | C6: 0 | E6: ø pro Spiel | F6: =SUM(E3)/B24 ->  | H6: RD 3 | I6: 0 | J6: 0 | L6: ø pro Spiel | M6: =SUM(L3)/I24 -> 
A7: RD 4 | B7: 0 | C7: 0 | E7: ø pro Pfeil | F7: =SUM(E3)/C24 ->  | H7: RD 4 | I7: 0 | J7: 0 | L7: ø pro Pfeil | M7: =SUM(L3)/J24 -> 
A8: RD 5 | B8: 0 | C8: 0 | E8: Average | H8: RD 5 | I8: 0 | J8: 0 | L8: Average
A9: RD 6 | B9: 0 | C9: 0 | E9: =SUM(F6) ->  | H9: RD 6 | I9: 0 | J9: 0 | L9: =SUM(M6) -> 
A10: RD 7 | B10: 0 | C10: 0 | H10: RD 7 | I10: 0 | J10: 0
A11: RD 8 | B11: 0 | C11: 0 | E11: Nicht Gut | H11: RD 8 | I11: 0 | J11: 0 | L11: Nicht Gut
A12: RD 9 | B12: 0 | C12: 0 | E12: Gut | H12: RD 9 | I12: 0 | J12: 0 | L12: Gut
A13: RD 10 | B13: 0 | C13: 0 | H13: RD 10 | I13: 0 | J13: 0
A14: RD 11 | B14: 0 | C14: 0 | E14: Sehr Gut | H14: RD 11 | I14: 0 | J14: 0 | L14: Sehr Gut
A15: RD 12 | B15: 0 | C15: 0 | H15: RD 12 | I15: 0 | J15: 0
A16: RD 13 | B16: 0 | C16: 0 | H16: RD 13 | I16: 0 | J16: 0
A17: RD 14 | B17: 0 | C17: 0 | H17: RD 14 | I17: 0 | J17: 0
A18: RD 15 | B18: 0 | C18: 0 | H18: RD 15 | I18: 0 | J18: 0
A19: RD 16 | B19: 0 | C19: 0 | H19: RD 16 | I19: 0 | J19: 0
A20: RD 17 | B20: 0 | C20: 0 | H20: RD 17 | I20: 0 | J20: 0
A21: RD 18 | B21: 0 | C21: 0 | H21: RD 18 | I21: 0 | J21: 0
A22: RD 19 | B22: 0 | C22: 0 | E22: =IF(E4=0,"Sieg","") ->  | H22: RD 19 | I22: 0 | J22: 0 | L22: =IF(L4=0,"Sieg","") -> 
A23: RD 20 | B23: 0 | C23: 0 | H23: RD 20 | I23: 0 | J23: 0
B24: =SUM(B4:B23) -> 0 | C24: =SUM(C4:C23) -> 0 | D24: =SUM(D4:D23) -> 0 | E24: =SUM(D4:D22) -> 0 | I24: =SUM(I4:I23) -> 0 | J24: =SUM(J4:J23) -> 0 | K24: =SUM(K4:K23) -> 0 | L24: =SUM(K4:K22) -> 0
E25: =IF(E3 > L3, D1, IF(D2 > L3, K1, "Unentschieden")) -> 0

Sheet Siegerliste
B1: Sieger
A2: Rd.1 | B2: =CONCATENATE('Rd. 1'!E35) -> Siggi
A3: Rd.2 | B3: =CONCATENATE('Rd. 2'!E35) -> 0
A4: Rd.3 | B4: =CONCATENATE('Rd. 3'!E35) -> 0
A5: Rd.4 | B5: =CONCATENATE('Rd. 4'!E35) -> 0
A6: Rd.5 | B6: =CONCATENATE('Rd. 5'!E35) -> 0
A7: Rd.6 | B7: =CONCATENATE('Rd. 6'!E35) -> 0
A8: Rd.7 | B8: =CONCATENATE('Rd. 7'!E35) -> 0
A9: Rd.8 | B9: =CONCATENATE('Rd. 8'!E35) -> 0
A10: Rd.9 | B10: =CONCATENATE('Rd. 9'!E35) -> 0
A11: Rd.10 | B11: =CONCATENATE('Rd. 10'!E35) -> 0
A12: Rd.11 | B12: =CONCATENATE('Rd. 11'!E25) -> 0
A13: Rd.12 | B13: =CONCATENATE('Rd. 12'!E25) -> 0

Sheet Runde1
A1: =CONCATENATE('Rd. 1'!D1) -> Siggi | F1: 501 | G1: =CONCATENATE('Rd. 1'!K1) -> Anja | L1: 501
A2: Rd.1 | B2: 33 | C2: 60 | D2: 12 | E2: =SUM(B2:D2) -> 105 | F2: =SUM(F1)-E2 -> 396 | G2: Rd.1 | H2: 20 | I2: 60 | J2: 26 | K2: =SUM(H2:J2) -> 106 | L2: =SUM(L1)-K2 -> 395
A3: Rd.2 | B3: 12 | C3: 25 | D3: 30 | E3: =SUM(B3:D3) -> 67 | F3: =SUM(F2)-E3 -> 329 | G3: Rd.2 | H3: 12 | I3: 19 | J3: 20 | K3: =SUM(H3:J3) -> 51 | L3: =SUM(L2)-K3 -> 344
A4: Rd.3 | B4: 3 | C4: 25 | D4: 4 | E4: =SUM(B4:D4) -> 32 | F4: =SUM(F3)-E4 -> 297 | G4: Rd.3 | H4: 11 | I4: 19 | J4: 3 | K4: 33 | L4: =SUM(L3)-K4 -> 311
A5: Rd.4 | E5: =SUM(B5:D5) -> 0 | F5: =SUM(F4)-E5 -> 297 | G5: Rd.4 | K5: 0 | L5: =SUM(L4)-K5 -> 311
A6: Rd.5 | E6: =SUM(B6:D6) -> 0 | F6: 297 | G6: Rd.5 | K6: 0 | L6: 311
A7: Rd.6 | E7: 0 | F7: 297 | G7: Rd.6 | K7: 0 | L7: 311
A8: Rd.7 | E8: 0 | F8: 297 | G8: Rd.7 | K8: 0 | L8: 311
A9: Rd.8 | E9: 0 | F9: 297 | G9: Rd.8 | K9: 0 | L9: 311
A10: Rd.9 | E10: 0 | F10: 297 | G10: Rd.9 | K10: 0 | L10: 311
A11: Rd.10 | E11: 0 | F11: 297 | G11: Rd.10 | K11: 0 | L11: 311
A12: Rd.11 | E12: 0 | F12: 297 | G12: Rd.11 | K12: 0 | L12: 311
A13: Rd.12 | E13: 0 | F13: 297 | G13: Rd.12 | K13: 0 | L13: 311
A14: Rd.13 | E14: 0 | F14: 297 | G14: Rd.13 | K14: 0 | L14: 311
A15: Rd.14 | E15: 0 | F15: 297 | G15: Rd.14 | K15: 0 | L15: 311
A16: Rd.15 | E16: 0 | F16: 297 | G16: Rd.15 | K16: 0 | L16: 311
A17: Rd.16 | E17: 0 | F17: 297 | G17: Rd.16 | K17: 0 | L17: 311
A18: Rd.17 | E18: 0 | F18: 297 | G18: Rd.17 | K18: 0 | L18: 311
A19: Rd.18 | E19: 0 | F19: 297 | G19: Rd.18 | K19: 0 | L19: 311
A20: Rd.19 | E20: 0 | F20: 297 | G20: Rd.19 | K20: 0 | L20: 311
A21: Rd.20 | E21: 0 | F21: 297 | G21: Rd.20 | K21: 0 | L21: 311
A22: Rd.21 | E22: 0 | F22: 297 | G22: Rd.21 | K22: 0 | L22: 311
A23: Rd.22 | E23: 0 | F23: 297 | G23: Rd.22 | K23: 0 | L23: 311
A24: Rd.23 | E24: 0 | F24: 297 | G24: Rd.23 | K24: 0 | L24: 311
A25: Rd.24 | E25: 0 | F25: 297 | G25: Rd.24 | K25: 0 | L25: 311
A26: Rd.25 | E26: 0 | F26: 297 | G26: Rd.25 | K26: 0 | L26: 311
A27: Rd.26 | E27: 0 | F27: 297 | G27: Rd.26 | K27: 0 | L27: 311
A28: Rd.27 | E28: 0 | F28: 297 | G28: Rd.27 | K28: 0 | L28: 311
A29: Rd.28 | E29: 0 | F29: 297 | G29: Rd.28 | K29: 0 | L29: 311
A30: Rd.29 | E30: 0 | F30: 297 | G30: Rd.29 | K30: 0 | L30: 311
A31: Rd.30 | E31: 0 | F31: 297 | G31: Rd.30 | K31: 0 | L31: 311

Sheet Runde2
A1: =CONCATENATE('Rd. 2'!D1) ->  | F1: 501 | G1: =CONCATENATE('Rd. 2'!K1) ->  | L1: 501
A2: Rd.1 | E2: =SUM(B2:D2) -> 0 | F2: =SUM(F1)-E2 -> 501 | G2: Rd.1 | K2: =SUM(H2:J2) -> 0 | L2: =SUM(L1)-K2 -> 501
A3: Rd.2 | E3: =SUM(B3:D3) -> 0 | F3: =SUM(F2)-E3 -> 501 | G3: Rd.2 | K3: =SUM(H3:J3) -> 0 | L3: =SUM(L2)-K3 -> 501
A4: Rd.3 | E4: =SUM(B4:D4) -> 0 | F4: =SUM(F3)-E4 -> 501 | G4: Rd.3 | K4: 0 | L4: =SUM(L3)-K4 -> 501
A5: Rd.4 | E5: =SUM(B5:D5) -> 0 | F5: =SUM(F4)-E5 -> 501 | G5: Rd.4 | K5: 0 | L5: =SUM(L4)-K5 -> 501
A6: Rd.5 | E6: =SUM(B6:D6) -> 0 | F6: 501 | G6: Rd.5 | K6: 0 | L6: 501
A7: Rd.6 | E7: 0 | F7: 501 | G7: Rd.6 | K7: 0 | L7: 501
A8: Rd.7 | E8: 0 | F8: 501 | G8: Rd.7 | K8: 0 | L8: 501
A9: Rd.8 | E9: 0 | F9: 501 | G9: Rd.8 | K9: 0 | L9: 501
A10: Rd.9 | E10: 0 | F10: 501 | G10: Rd.9 | K10: 0 | L10: 501
A11: Rd.10 | E11: 0 | F11: 501 | G11: Rd.10 | K11: 0 | L11: 501
A12: Rd.11 | E12: 0 | F12: 501 | G12: Rd.11 | K12: 0 | L12: 501
A13: Rd.12 | E13: 0 | F13: 501 | G13: Rd.12 | K13: 0 | L13: 501
A14: Rd.13 | E14: 0 | F14: 501 | G14: Rd.13 | K14: 0 | L14: 501
A15: Rd.14 | E15: 0 | F15: 501 | G15: Rd.14 | K15: 0 | L15: 501
A16: Rd.15 | E16: 0 | F16: 501 | G16: Rd.15 | K16: 0 | L16: 501
A17: Rd.16 | E17: 0 | F17: 501 | G17: Rd.16 | K17: 0 | L17: 501
A18: Rd.17 | E18: 0 | F18: 501 | G18: Rd.17 | K18: 0 | L18: 501
A19: Rd.18 | E19: 0 | F19: 501 | G19: Rd.18 | K19: 0 | L19: 501
A20: Rd.19 | E20: 0 | F20: 501 | G20: Rd.19 | K20: 0 | L20: 501
A21: Rd.20 | E21: 0 | F21: 501 | G21: Rd.20 | K21: 0 | L21: 501
A22: Rd.21 | E22: 0 | F22: 501 | G22: Rd.21 | K22: 0 | L22: 501
A23: Rd.22 | E23: 0 | F23: 501 | G23: Rd.22 | K23: 0 | L23: 501
A24: Rd.23 | E24: 0 | F24: 501 | G24: Rd.23 | K24: 0 | L24: 501
A25: Rd.24 | E25: 0 | F25: 501 | G25: Rd.24 | K25: 0 | L25: 501
A26: Rd.25 | E26: 0 | F26: 501 | G26: Rd.25 | K26: 0 | L26: 501
A27: Rd.26 | E27: 0 | F27: 501 | G27: Rd.26 | K27: 0 | L27: 501
A28: Rd.27 | E28: 0 | F28: 501 | G28: Rd.27 | K28: 0 | L28: 501
A29: Rd.28 | E29: 0 | F29: 501 | G29: Rd.28 | K29: 0 | L29: 501
A30: Rd.29 | E30: 0 | F30: 501 | G30: Rd.29 | K30: 0 | L30: 501
A31: Rd.30 | E31: 0 | F31: 501 | G31: Rd.30 | K31: 0 | L31: 501

Sheet Runde3
A1: =CONCATENATE('Rd. 3'!D1) ->  | F1: 501 | G1: =CONCATENATE('Rd. 3'!K1) ->  | L1: 501
A2: Rd.1 | B2: 66 | E2: =SUM(B2:D2) -> 66 | F2: =SUM(F1)-E2 -> 435 | G2: Rd.1 | H2: 99 | K2: =SUM(H2:J2) -> 99 | L2: =SUM(L1)-K2 -> 402
A3: Rd.2 | E3: =SUM(B3:D3) -> 0 | F3: =SUM(F2)-E3 -> 435 | G3: Rd.2 | K3: =SUM(H3:J3) -> 0 | L3: =SUM(L2)-K3 -> 402
A4: Rd.3 | E4: =SUM(B4:D4) -> 0 | F4: =SUM(F3)-E4 -> 435 | G4: Rd.3 | K4: 0 | L4: =SUM(L3)-K4 -> 402
A5: Rd.4 | E5: =SUM(B5:D5) -> 0 | F5: =SUM(F4)-E5 -> 435 | G5: Rd.4 | K5: 0 | L5: =SUM(L4)-K5 -> 402
A6: Rd.5 | E6: =SUM(B6:D6) -> 0 | F6: 435 | G6: Rd.5 | K6: 0 | L6: 402
A7: Rd.6 | E7: 0 | F7: 435 | G7: Rd.6 | K7: 0 | L7: 402
A8: Rd.7 | E8: 0 | F8: 435 | G8: Rd.7 | K8: 0 | L8: 402
A9: Rd.8 | E9: 0 | F9: 435 | G9: Rd.8 | K9: 0 | L9: 402
A10: Rd.9 | E10: 0 | F10: 435 | G10: Rd.9 | K10: 0 | L10: 402
A11: Rd.10 | E11: 0 | F11: 435 | G11: Rd.10 | K11: 0 | L11: 402
A12: Rd.11 | E12: 0 | F12: 435 | G12: Rd.11 | K12: 0 | L12: 402
A13: Rd.12 | E13: 0 | F13: 435 | G13: Rd.12 | K13: 0 | L13: 402
A14: Rd.13 | E14: 0 | F14: 435 | G14: Rd.13 | K14: 0 | L14: 402
A15: Rd.14 | E15: 0 | F15: 435 | G15: Rd.14 | K15: 0 | L15: 402
A16: Rd.15 | E16: 0 | F16: 435 | G16: Rd.15 | K16: 0 | L16: 402
A17: Rd.16 | E17: 0 | F17: 435 | G17: Rd.16 | K17: 0 | L17: 402
A18: Rd.17 | E18: 0 | F18: 435 | G18: Rd.17 | K18: 0 | L18: 402
A19: Rd.18 | E19: 0 | F19: 435 | G19: Rd.18 | K19: 0 | L19: 402
A20: Rd.19 | E20: 0 | F20: 435 | G20: Rd.19 | K20: 0 | L20: 402
A21: Rd.20 | E21: 0 | F21: 435 | G21: Rd.20 | K21: 0 | L21: 402
A22: Rd.21 | E22: 0 | F22: 435 | G22: Rd.21 | K22: 0 | L22: 402
A23: Rd.22 | E23: 0 | F23: 435 | G23: Rd.22 | K23: 0 | L23: 402
A24: Rd.23 | E24: 0 | F24: 435 | G24: Rd.23 | K24: 0 | L24: 402
A25: Rd.24 | E25: 0 | F25: 435 | G25: Rd.24 | K25: 0 | L25: 402
A26: Rd.25 | E26: 0 | F26: 435 | G26: Rd.25 | K26: 0 | L26: 402
A27: Rd.26 | E27: 0 | F27: 435 | G27: Rd.26 | K27: 0 | L27: 402
A28: Rd.27 | E28: 0 | F28: 435 | G28: Rd.27 | K28: 0 | L28: 402
A29: Rd.28 | E29: 0 | F29: 435 | G29: Rd.28 | K29: 0 | L29: 402
A30: Rd.29 | E30: 0 | F30: 435 | G30: Rd.29 | K30: 0 | L30: 402
A31: Rd.30 | E31: 0 | F31: 435 | G31: Rd.30 | K31: 0 | L31: 402

Sheet Runde4
A1: =CONCATENATE('Rd. 4'!D1) ->  | F1: 501 | G1: =CONCATENATE('Rd. 4'!K1) ->  | L1: 501
A2: Rd.1 | B2: 33 | C2: 12 | D2: 19 | E2: =SUM(B2:D2) -> 64 | F2: =SUM(F1)-E2 -> 437 | G2: Rd.1 | H2: 33 | I2: 22 | J2: 50 | K2: =SUM(H2:J2) -> 105 | L2: =SUM(L1)-K2 -> 396
A3: Rd.2 | E3: =SUM(B3:D3) -> 0 | F3: =SUM(F2)-E3 -> 437 | G3: Rd.2 | K3: =SUM(H3:J3) -> 0 | L3: =SUM(L2)-K3 -> 396
A4: Rd.3 | E4: =SUM(B4:D4) -> 0 | F4: =SUM(F3)-E4 -> 437 | G4: Rd.3 | K4: 0 | L4: =SUM(L3)-K4 -> 396
A5: Rd.4 | E5: =SUM(B5:D5) -> 0 | F5: =SUM(F4)-E5 -> 437 | G5: Rd.4 | K5: 0 | L5: =SUM(L4)-K5 -> 396
A6: Rd.5 | E6: =SUM(B6:D6) -> 0 | F6: 437 | G6: Rd.5 | K6: 0 | L6: 396
A7: Rd.6 | E7: 0 | F7: 437 | G7: Rd.6 | K7: 0 | L7: 396
A8: Rd.7 | E8: 0 | F8: 437 | G8: Rd.7 | K8: 0 | L8: 396
A9: Rd.8 | E9: 0 | F9: 437 | G9: Rd.8 | K9: 0 | L9: 396
A10: Rd.9 | E10: 0 | F10: 437 | G10: Rd.9 | K10: 0 | L10: 396
A11: Rd.10 | E11: 0 | F11: 437 | G11: Rd.10 | K11: 0 | L11: 396
A12: Rd.11 | E12: 0 | F12: 437 | G12: Rd.11 | K12: 0 | L12: 396
A13: Rd.12 | E13: 0 | F13: 437 | G13: Rd.12 | K13: 0 | L13: 396
A14: Rd.13 | E14: 0 | F14: 437 | G14: Rd.13 | K14: 0 | L14: 396
A15: Rd.14 | E15: 0 | F15: 437 | G15: Rd.14 | K15: 0 | L15: 396
A16: Rd.15 | E16: 0 | F16: 437 | G16: Rd.15 | K16: 0 | L16: 396
A17: Rd.16 | E17: 0 | F17: 437 | G17: Rd.16 | K17: 0 | L17: 396
A18: Rd.17 | E18: 0 | F18: 437 | G18: Rd.17 | K18: 0 | L18: 396
A19: Rd.18 | E19: 0 | F19: 437 | G19: Rd.18 | K19: 0 | L19: 396
A20: Rd.19 | E20: 0 | F20: 437 | G20: Rd.19 | K20: 0 | L20: 396
A21: Rd.20 | E21: 0 | F21: 437 | G21: Rd.20 | K21: 0 | L21: 396
A22: Rd.21 | E22: 0 | F22: 437 | G22: Rd.21 | K22: 0 | L22: 396
A23: Rd.22 | E23: 0 | F23: 437 | G23: Rd.22 | K23: 0 | L23: 396
A24: Rd.23 | E24: 0 | F24: 437 | G24: Rd.23 | K24: 0 | L24: 396
A25: Rd.24 | E25: 0 | F25: 437 | G25: Rd.24 | K25: 0 | L25: 396
A26: Rd.25 | E26: 0 | F26: 437 | G26: Rd.25 | K26: 0 | L26: 396
A27: Rd.26 | E27: 0 | F27: 437 | G27: Rd.26 | K27: 0 | L27: 396
A28: Rd.27 | E28: 0 | F28: 437 | G28: Rd.27 | K28: 0 | L28: 396
A29: Rd.28 | E29: 0 | F29: 437 | G29: Rd.28 | K29: 0 | L29: 396
A30: Rd.29 | E30: 0 | F30: 437 | G30: Rd.29 | K30: 0 | L30: 396
A31: Rd.30 | E31: 0 | F31: 437 | G31: Rd.30 | K31: 0 | L31: 396

Sheet Runde5
A1: =CONCATENATE('Rd. 5'!D1) ->  | F1: 501 | G1: =CONCATENATE('Rd. 5'!K1) ->  | L1: 501
A2: Rd.1 | E2: =SUM(B2:D2) -> 0 | F2: =SUM(F1)-E2 -> 501 | G2: Rd.1 | K2: =SUM(H2:J2) -> 0 | L2: =SUM(L1)-K2 -> 501
A3: Rd.2 | E3: =SUM(B3:D3) -> 0 | F3: =SUM(F2)-E3 -> 501 | G3: Rd.2 | K3: =SUM(H3:J3) -> 0 | L3: =SUM(L2)-K3 -> 501
A4: Rd.3 | E4: =SUM(B4:D4) -> 0 | F4: =SUM(F3)-E4 -> 501 | G4: Rd.3 | K4: 0 | L4: =SUM(L3)-K4 -> 501
A5: Rd.4 | E5: =SUM(B5:D5) -> 0 | F5: =SUM(F4)-E5 -> 501 | G5: Rd.4 | K5: 0 | L5: =SUM(L4)-K5 -> 501
A6: Rd.5 | E6: =SUM(B6:D6) -> 0 | F6: 501 | G6: Rd.5 | K6: 0 | L6: 501
A7: Rd.6 | E7: 0 | F7: 501 | G7: Rd.6 | K7: 0 | L7: 501
A8: Rd.7 | E8: 0 | F8: 501 | G8: Rd.7 | K8: 0 | L8: 501
A9: Rd.8 | E9: 0 | F9: 501 | G9: Rd.8 | K9: 0 | L9: 501
A10: Rd.9 | E10: 0 | F10: 501 | G10: Rd.9 | K10: 0 | L10: 501
A11: Rd.10 | E11: 0 | F11: 501 | G11: Rd.10 | K11: 0 | L11: 501
A12: Rd.11 | E12: 0 | F12: 501 | G12: Rd.11 | K12: 0 | L12: 501
A13: Rd.12 | E13: 0 | F13: 501 | G13: Rd.12 | K13: 0 | L13: 501
A14: Rd.13 | E14: 0 | F14: 501 | G14: Rd.13 | K14: 0 | L14: 501
A15: Rd.14 | E15: 0 | F15: 501 | G15: Rd.14 | K15: 0 | L15: 501
A16: Rd.15 | E16: 0 | F16: 501 | G16: Rd.15 | K16: 0 | L16: 501
A17: Rd.16 | E17: 0 | F17: 501 | G17: Rd.16 | K17: 0 | L17: 501
A18: Rd.17 | E18: 0 | F18: 501 | G18: Rd.17 | K18: 0 | L18: 501
A19: Rd.18 | E19: 0 | F19: 501 | G19: Rd.18 | K19: 0 | L19: 501
A20: Rd.19 | E20: 0 | F20: 501 | G20: Rd.19 | K20: 0 | L20: 501
A21: Rd.20 | E21: 0 | F21: 501 | G21: Rd.20 | K21: 0 | L21: 501
A22: Rd.21 | E22: 0 | F22: 501 | G22: Rd.21 | K22: 0 | L22: 501
A23: Rd.22 | E23: 0 | F23: 501 | G23: Rd.22 | K23: 0 | L23: 501
A24: Rd.23 | E24: 0 | F24: 501 | G24: Rd.23 | K24: 0 | L24: 501
A25: Rd.24 | E25: 0 | F25: 501 | G25: Rd.24 | K25: 0 | L25: 501
A26: Rd.25 | E26: 0 | F26: 501 | G26: Rd.25 | K26: 0 | L26: 501
A27: Rd.26 | E27: 0 | F27: 501 | G27: Rd.26 | K27: 0 | L27: 501
A28: Rd.27 | E28: 0 | F28: 501 | G28: Rd.27 | K28: 0 | L28: 501
A29: Rd.28 | E29: 0 | F29: 501 | G29: Rd.28 | K29: 0 | L29: 501
A30: Rd.29 | E30: 0 | F30: 501 | G30: Rd.29 | K30: 0 | L30: 501
A31: Rd.30 | E31: 0 | F31: 501 | G31: Rd.30 | K31: 0 | L31: 501

Sheet Runde6
A1: =CONCATENATE('Rd. 6'!D1) ->  | G1: =CONCATENATE('Rd. 6'!K1) ->  | L1: 501
A2: Rd.1 | E2: =SUM(B2:D2) -> 0 | F2: =SUM(F1)-E2 -> 0 | G2: Rd.1 | K2: =SUM(H2:J2) -> 0 | L2: =SUM(L1)-K2 -> 501
A3: Rd.2 | E3: =SUM(B3:D3) -> 0 | F3: =SUM(F2)-E3 -> 0 | G3: Rd.2 | K3: =SUM(H3:J3) -> 0 | L3: =SUM(L2)-K3 -> 501
A4: Rd.3 | E4: =SUM(B4:D4) -> 0 | F4: =SUM(F3)-E4 -> 0 | G4: Rd.3 | K4: 0 | L4: =SUM(L3)-K4 -> 501
A5: Rd.4 | E5: =SUM(B5:D5) -> 0 | F5: =SUM(F4)-E5 -> 0 | G5: Rd.4 | K5: 0 | L5: =SUM(L4)-K5 -> 501
A6: Rd.5 | E6: =SUM(B6:D6) -> 0 | F6: 0 | G6: Rd.5 | K6: 0 | L6: 501
A7: Rd.6 | E7: 0 | F7: 0 | G7: Rd.6 | K7: 0 | L7: 501
A8: Rd.7 | E8: 0 | F8: 0 | G8: Rd.7 | K8: 0 | L8: 501
A9: Rd.8 | E9: 0 | F9: 0 | G9: Rd.8 | K9: 0 | L9: 501
A10: Rd.9 | E10: 0 | F10: 0 | G10: Rd.9 | K10: 0 | L10: 501
A11: Rd.10 | E11: 0 | F11: 0 | G11: Rd.10 | K11: 0 | L11: 501
A12: Rd.11 | E12: 0 | F12: 0 | G12: Rd.11 | K12: 0 | L12: 501
A13: Rd.12 | E13: 0 | F13: 0 | G13: Rd.12 | K13: 0 | L13: 501
A14: Rd.13 | E14: 0 | F14: 0 | G14: Rd.13 | K14: 0 | L14: 501
A15: Rd.14 | E15: 0 | F15: 0 | G15: Rd.14 | K15: 0 | L15: 501
A16: Rd.15 | E16: 0 | F16: 0 | G16: Rd.15 | K16: 0 | L16: 501
A17: Rd.16 | E17: 0 | F17: 0 | G17: Rd.16 | K17: 0 | L17: 501
A18: Rd.17 | E18: 0 | F18: 0 | G18: Rd.17 | K18: 0 | L18: 501
A19: Rd.18 | E19: 0 | F19: 0 | G19: Rd.18 | K19: 0 | L19: 501
A20: Rd.19 | E20: 0 | F20: 0 | G20: Rd.19 | K20: 0 | L20: 501
A21: Rd.20 | E21: 0 | F21: 0 | G21: Rd.20 | K21: 0 | L21: 501
A22: Rd.21 | E22: 0 | F22: 0 | G22: Rd.21 | K22: 0 | L22: 501
A23: Rd.22 | E23: 0 | F23: 0 | G23: Rd.22 | K23: 0 | L23: 501
A24: Rd.23 | E24: 0 | F24: 0 | G24: Rd.23 | K24: 0 | L24: 501
A25: Rd.24 | E25: 0 | F25: 0 | G25: Rd.24 | K25: 0 | L25: 501
A26: Rd.25 | E26: 0 | F26: 0 | G26: Rd.25 | K26: 0 | L26: 501
A27: Rd.26 | E27: 0 | F27: 0 | G27: Rd.26 | K27: 0 | L27: 501
A28: Rd.27 | E28: 0 | F28: 0 | G28: Rd.27 | K28: 0 | L28: 501
A29: Rd.28 | E29: 0 | F29: 0 | G29: Rd.28 | K29: 0 | L29: 501
A30: Rd.29 | E30: 0 | F30: 0 | G30: Rd.29 | K30: 0 | L30: 501
A31: Rd.30 | E31: 0 | F31: 0 | G31: Rd.30 | K31: 0 | L31: 501

Sheet Runde7
A1: =CONCATENATE('Rd. 7'!D1) ->  | F1: 501 | G1: =CONCATENATE('Rd. 7'!K1) ->  | L1: 501
A2: Rd.1 | E2: =SUM(B2:D2) -> 0 | F2: =SUM(F1)-E2 -> 501 | G2: Rd.1 | K2: =SUM(H2:J2) -> 0 | L2: =SUM(L1)-K2 -> 501
A3: Rd.2 | E3: =SUM(B3:D3) -> 0 | F3: =SUM(F2)-E3 -> 501 | G3: Rd.2 | K3: =SUM(H3:J3) -> 0 | L3: =SUM(L2)-K3 -> 501
A4: Rd.3 | E4: =SUM(B4:D4) -> 0 | F4: =SUM(F3)-E4 -> 501 | G4: Rd.3 | K4: =SUM(H4:J4) -> 0 | L4: =SUM(L3)-K4 -> 501
A5: Rd.4 | E5: =SUM(B5:D5) -> 0 | F5: =SUM(F4)-E5 -> 501 | G5: Rd.4 | K5: =SUM(H5:J5) -> 0 | L5: =SUM(L4)-K5 -> 501
A6: Rd.5 | E6: =SUM(B6:D6) -> 0 | F6: 501 | G6: Rd.5 | K6: =SUM(H6:J6) -> 0 | L6: 501
A7: Rd.6 | E7: 0 | F7: 501 | G7: Rd.6 | K7: 0 | L7: 501
A8: Rd.7 | E8: 0 | F8: 501 | G8: Rd.7 | K8: 0 | L8: 501
A9: Rd.8 | E9: 0 | F9: 501 | G9: Rd.8 | K9: 0 | L9: 501
A10: Rd.9 | E10: 0 | F10: 501 | G10: Rd.9 | K10: 0 | L10: 501
A11: Rd.10 | E11: 0 | F11: 501 | G11: Rd.10 | K11: 0 | L11: 501
A12: Rd.11 | E12: 0 | F12: 501 | G12: Rd.11 | K12: 0 | L12: 501
A13: Rd.12 | E13: 0 | F13: 501 | G13: Rd.12 | K13: 0 | L13: 501
A14: Rd.13 | E14: 0 | F14: 501 | G14: Rd.13 | K14: 0 | L14: 501
A15: Rd.14 | E15: 0 | F15: 501 | G15: Rd.14 | K15: 0 | L15: 501
A16: Rd.15 | E16: 0 | F16: 501 | G16: Rd.15 | K16: 0 | L16: 501
A17: Rd.16 | E17: 0 | F17: 501 | G17: Rd.16 | K17: 0 | L17: 501
A18: Rd.17 | E18: 0 | F18: 501 | G18: Rd.17 | K18: 0 | L18: 501
A19: Rd.18 | E19: 0 | F19: 501 | G19: Rd.18 | K19: 0 | L19: 501
A20: Rd.19 | E20: 0 | F20: 501 | G20: Rd.19 | K20: 0 | L20: 501
A21: Rd.20 | E21: 0 | F21: 501 | G21: Rd.20 | K21: 0 | L21: 501
A22: Rd.21 | E22: 0 | F22: 501 | G22: Rd.21 | K22: 0 | L22: 501
A23: Rd.22 | E23: 0 | F23: 501 | G23: Rd.22 | K23: 0 | L23: 501
A24: Rd.23 | E24: 0 | F24: 501 | G24: Rd.23 | K24: 0 | L24: 501
A25: Rd.24 | E25: 0 | F25: 501 | G25: Rd.24 | K25: 0 | L25: 501
A26: Rd.25 | E26: 0 | F26: 501 | G26: Rd.25 | K26: 0 | L26: 501
A27: Rd.26 | E27: 0 | F27: 501 | G27: Rd.26 | K27: 0 | L27: 501
A28: Rd.27 | E28: 0 | F28: 501 | G28: Rd.27 | K28: 0 | L28: 501
A29: Rd.28 | E29: 0 | F29: 501 | G29: Rd.28 | K29: 0 | L29: 501
A30: Rd.29 | E30: 0 | F30: 501 | G30: Rd.29 | K30: 0 | L30: 501
A31: Rd.30 | E31: 0 | F31: 501 | G31: Rd.30 | K31: 0 | L31: 501

Sheet Runde8
A1: =CONCATENATE('Rd. 8'!D1) ->  | F1: 501 | G1: =CONCATENATE('Rd. 8'!K1) ->  | L1: 501
A2: Rd.1 | E2: =SUM(B2:D2) -> 0 | F2: =SUM(F1)-E2 -> 501 | G2: Rd.1 | K2: =SUM(H2:J2) -> 0 | L2: =SUM(L1)-K2 -> 501
A3: Rd.2 | E3: =SUM(B3:D3) -> 0 | F3: =SUM(F2)-E3 -> 501 | G3: Rd.2 | K3: =SUM(H3:J3) -> 0 | L3: =SUM(L2)-K3 -> 501
A4: Rd.3 | E4: =SUM(B4:D4) -> 0 | F4: =SUM(F3)-E4 -> 501 | G4: Rd.3 | K4: =SUM(H4:J4) -> 0 | L4: =SUM(L3)-K4 -> 501
A5: Rd.4 | E5: =SUM(B5:D5) -> 0 | F5: =SUM(F4)-E5 -> 501 | G5: Rd.4 | K5: =SUM(H5:J5) -> 0 | L5: =SUM(L4)-K5 -> 501
A6: Rd.5 | E6: =SUM(B6:D6) -> 0 | F6: 501 | G6: Rd.5 | K6: =SUM(H6:J6) -> 0 | L6: 501
A7: Rd.6 | E7: 0 | F7: 501 | G7: Rd.6 | K7: 0 | L7: 501
A8: Rd.7 | E8: 0 | F8: 501 | G8: Rd.7 | K8: 0 | L8: 501
A9: Rd.8 | E9: 0 | F9: 501 | G9: Rd.8 | K9: 0 | L9: 501
A10: Rd.9 | E10: 0 | F10: 501 | G10: Rd.9 | K10: 0 | L10: 501
A11: Rd.10 | E11: 0 | F11: 501 | G11: Rd.10 | K11: 0 | L11: 501
A12: Rd.11 | E12: 0 | F12: 501 | G12: Rd.11 | K12: 0 | L12: 501
A13: Rd.12 | E13: 0 | F13: 501 | G13: Rd.12 | K13: 0 | L13: 501
A14: Rd.13 | E14: 0 | F14: 501 | G14: Rd.13 | K14: 0 | L14: 501
A15: Rd.14 | E15: 0 | F15: 501 | G15: Rd.14 | K15: 0 | L15: 501
A16: Rd.15 | E16: 0 | F16: 501 | G16: Rd.15 | K16: 0 | L16: 501
A17: Rd.16 | E17: 0 | F17: 501 | G17: Rd.16 | K17: 0 | L17: 501
A18: Rd.17 | E18: 0 | F18: 501 | G18: Rd.17 | K18: 0 | L18: 501
A19: Rd.18 | E19: 0 | F19: 501 | G19: Rd.18 | K19: 0 | L19: 501
A20: Rd.19 | E20: 0 | F20: 501 | G20: Rd.19 | K20: 0 | L20: 501
A21: Rd.20 | E21: 0 | F21: 501 | G21: Rd.20 | K21: 0 | L21: 501
A22: Rd.21 | E22: 0 | F22: 501 | G22: Rd.21 | K22: 0 | L22: 501
A23: Rd.22 | E23: 0 | F23: 501 | G23: Rd.22 | K23: 0 | L23: 501
A24: Rd.23 | E24: 0 | F24: 501 | G24: Rd.23 | K24: 0 | L24: 501
A25: Rd.24 | E25: 0 | F25: 501 | G25: Rd.24 | K25: 0 | L25: 501
A26: Rd.25 | E26: 0 | F26: 501 | G26: Rd.25 | K26: 0 | L26: 501
A27: Rd.26 | E27: 0 | F27: 501 | G27: Rd.26 | K27: 0 | L27: 501
A28: Rd.27 | E28: 0 | F28: 501 | G28: Rd.27 | K28: 0 | L28: 501
A29: Rd.28 | E29: 0 | F29: 501 | G29: Rd.28 | K29: 0 | L29: 501
A30: Rd.29 | E30: 0 | F30: 501 | G30: Rd.29 | K30: 0 | L30: 501
A31: Rd.30 | E31: 0 | F31: 501 | G31: Rd.30 | K31: 0 | L31: 501

Sheet Runde9
A1: =CONCATENATE('Rd. 9'!D1) ->  | F1: 501 | G1: =CONCATENATE('Rd. 9'!K1) ->  | L1: 501
A2: Rd.1 | E2: =SUM(B2:D2) -> 0 | F2: =SUM(F1)-E2 -> 501 | G2: Rd.1 | K2: =SUM(H2:J2) -> 0 | L2: =SUM(L1)-K2 -> 501
A3: Rd.2 | E3: =SUM(B3:D3) -> 0 | F3: =SUM(F2)-E3 -> 501 | G3: Rd.2 | K3: =SUM(H3:J3) -> 0 | L3: =SUM(L2)-K3 -> 501
A4: Rd.3 | E4: =SUM(B4:D4) -> 0 | F4: =SUM(F3)-E4 -> 501 | G4: Rd.3 | K4: =SUM(H4:J4) -> 0 | L4: =SUM(L3)-K4 -> 501
A5: Rd.4 | E5: =SUM(B5:D5) -> 0 | F5: =SUM(F4)-E5 -> 501 | G5: Rd.4 | K5: =SUM(H5:J5) -> 0 | L5: =SUM(L4)-K5 -> 501
A6: Rd.5 | E6: =SUM(B6:D6) -> 0 | F6: 501 | G6: Rd.5 | K6: =SUM(H6:J6) -> 0 | L6: 501
A7: Rd.6 | E7: 0 | F7: 501 | G7: Rd.6 | K7: 0 | L7: 501
A8: Rd.7 | E8: 0 | F8: 501 | G8: Rd.7 | K8: 0 | L8: 501
A9: Rd.8 | E9: 0 | F9: 501 | G9: Rd.8 | K9: 0 | L9: 501
A10: Rd.9 | E10: 0 | F10: 501 | G10: Rd.9 | K10: 0 | L10: 501
A11: Rd.10 | E11: 0 | F11: 501 | G11: Rd.10 | K11: 0 | L11: 501
A12: Rd.11 | E12: 0 | F12: 501 | G12: Rd.11 | K12: 0 | L12: 501
A13: Rd.12 | E13: 0 | F13: 501 | G13: Rd.12 | K13: 0 | L13: 501
A14: Rd.13 | E14: 0 | F14: 501 | G14: Rd.13 | K14: 0 | L14: 501
A15: Rd.14 | E15: 0 | F15: 501 | G15: Rd.14 | K15: 0 | L15: 501
A16: Rd.15 | E16: 0 | F16: 501 | G16: Rd.15 | K16: 0 | L16: 501
A17: Rd.16 | E17: 0 | F17: 501 | G17: Rd.16 | K17: 0 | L17: 501
A18: Rd.17 | E18: 0 | F18: 501 | G18: Rd.17 | K18: 0 | L18: 501
A19: Rd.18 | E19: 0 | F19: 501 | G19: Rd.18 | K19: 0 | L19: 501
A20: Rd.19 | E20: 0 | F20: 501 | G20: Rd.19 | K20: 0 | L20: 501
A21: Rd.20 | E21: 0 | F21: 501 | G21: Rd.20 | K21: 0 | L21: 501
A22: Rd.21 | E22: 0 | F22: 501 | G22: Rd.21 | K22: 0 | L22: 501
A23: Rd.22 | E23: 0 | F23: 501 | G23: Rd.22 | K23: 0 | L23: 501
A24: Rd.23 | E24: 0 | F24: 501 | G24: Rd.23 | K24: 0 | L24: 501
A25: Rd.24 | E25: 0 | F25: 501 | G25: Rd.24 | K25: 0 | L25: 501
A26: Rd.25 | E26: 0 | F26: 501 | G26: Rd.25 | K26: 0 | L26: 501
A27: Rd.26 | E27: 0 | F27: 501 | G27: Rd.26 | K27: 0 | L27: 501
A28: Rd.27 | E28: 0 | F28: 501 | G28: Rd.27 | K28: 0 | L28: 501
A29: Rd.28 | E29: 0 | F29: 501 | G29: Rd.28 | K29: 0 | L29: 501
A30: Rd.29 | E30: 0 | F30: 501 | G30: Rd.29 | K30: 0 | L30: 501
A31: Rd.30 | E31: 0 | F31: 501 | G31: Rd.30 | K31: 0 | L31: 501

Sheet Runde10
A1: =CONCATENATE('Rd. 10'!D1) ->  | F1: 501 | G1: =CONCATENATE('Rd. 10'!K1) ->  | L1: 501
A2: Rd.1 | B2: 50 | C2: 20 | D2: 12 | E2: =SUM(B2:D2) -> 82 | F2: =SUM(F1)-E2 -> 419 | G2: Rd.1 | H2: 17 | I2: 18 | J2: 33 | K2: =SUM(H2:J2) -> 68 | L2: =SUM(L1)-K2 -> 433
A3: Rd.2 | E3: =SUM(B3:D3) -> 0 | F3: =SUM(F2)-E3 -> 419 | G3: Rd.2 | K3: =SUM(H3:J3) -> 0 | L3: =SUM(L2)-K3 -> 433
A4: Rd.3 | E4: =SUM(B4:D4) -> 0 | F4: =SUM(F3)-E4 -> 419 | G4: Rd.3 | K4: =SUM(H4:J4) -> 0 | L4: =SUM(L3)-K4 -> 433
A5: Rd.4 | E5: =SUM(B5:D5) -> 0 | F5: =SUM(F4)-E5 -> 419 | G5: Rd.4 | K5: =SUM(H5:J5) -> 0 | L5: =SUM(L4)-K5 -> 433
A6: Rd.5 | E6: =SUM(B6:D6) -> 0 | F6: 419 | G6: Rd.5 | K6: =SUM(H6:J6) -> 0 | L6: 433
A7: Rd.6 | E7: 0 | F7: 419 | G7: Rd.6 | K7: 0 | L7: 433
A8: Rd.7 | E8: 0 | F8: 419 | G8: Rd.7 | K8: 0 | L8: 433
A9: Rd.8 | E9: 0 | F9: 419 | G9: Rd.8 | K9: 0 | L9: 433
A10: Rd.9 | E10: 0 | F10: 419 | G10: Rd.9 | K10: 0 | L10: 433
A11: Rd.10 | E11: 0 | F11: 419 | G11: Rd.10 | K11: 0 | L11: 433
A12: Rd.11 | E12: 0 | F12: 419 | G12: Rd.11 | K12: 0 | L12: 433
A13: Rd.12 | E13: 0 | F13: 419 | G13: Rd.12 | K13: 0 | L13: 433
A14: Rd.13 | E14: 0 | F14: 419 | G14: Rd.13 | K14: 0 | L14: 433
A15: Rd.14 | E15: 0 | F15: 419 | G15: Rd.14 | K15: 0 | L15: 433
A16: Rd.15 | E16: 0 | F16: 419 | G16: Rd.15 | K16: 0 | L16: 433
A17: Rd.16 | E17: 0 | F17: 419 | G17: Rd.16 | K17: 0 | L17: 433
A18: Rd.17 | E18: 0 | F18: 419 | G18: Rd.17 | K18: 0 | L18: 433
A19: Rd.18 | E19: 0 | F19: 419 | G19: Rd.18 | K19: 0 | L19: 433
A20: Rd.19 | E20: 0 | F20: 419 | G20: Rd.19 | K20: 0 | L20: 433
A21: Rd.20 | E21: 0 | F21: 419 | G21: Rd.20 | K21: 0 | L21: 433
A22: Rd.21 | E22: 0 | F22: 419 | G22: Rd.21 | K22: 0 | L22: 433
A23: Rd.22 | E23: 0 | F23: 419 | G23: Rd.22 | K23: 0 | L23: 433
A24: Rd.23 | E24: 0 | F24: 419 | G24: Rd.23 | K24: 0 | L24: 433
A25: Rd.24 | E25: 0 | F25: 419 | G25: Rd.24 | K25: 0 | L25: 433
A26: Rd.25 | E26: 0 | F26: 419 | G26: Rd.25 | K26: 0 | L26: 433
A27: Rd.26 | E27: 0 | F27: 419 | G27: Rd.26 | K27: 0 | L27: 433
A28: Rd.27 | E28: 0 | F28: 419 | G28: Rd.27 | K28: 0 | L28: 433
A29: Rd.28 | E29: 0 | F29: 419 | G29: Rd.28 | K29: 0 | L29: 433
A30: Rd.29 | E30: 0 | F30: 419 | G30: Rd.29 | K30: 0 | L30: 433
A31: Rd.30 | E31: 0 | F31: 419 | G31: Rd.30 | K31: 0 | L31: 433

Sheet Namen
A2: Anja
A3: Erich
A4: Siggi
A5: Ralf M.
A6: Ralf Kl.
A7: Volker
A8: Rene
A9: Nicole
A10: Frank
A11: Gast
